Publisher Label,Publisher URI,"Supplier","Invoice ","Amount (£)","Purpose","Transaction Number","Payment Date","Organisational Unit","Cost Centre(T)","Internal category number"
"Wolverhampton City Council","http://opendatacommunities.org/id/metropolitan-district-council/wolverhampton","Acco Brands Service Division","320004164","112.46","Stationery","130148987","09/12/2016","Schools","Bilston Nursery","R4308"
"Wolverhampton City Council","http://opendatacommunities.org/id/metropolitan-district-council/wolverhampton","Michelle Caney","INVMC5","562.50","Services - Professional Fees","130149826","21/12/2016","Legal Services","Centralised External Legal Costs","R4400"
"Wolverhampton City Council","http://opendatacommunities.org/id/metropolitan-district-council/wolverhampton","THE Acme Facilities Group Ltd","IN296277","95.00","Equipment - Catering","130149986","21/12/2016","Visitor Economy","Art Gallery Tea Room","R4010"
"Wolverhampton City Council","http://opendatacommunities.org/id/metropolitan-district-council/wolverhampton","THE Acme Facilities Group Ltd","IN296270","2,990.00","Equipment - Purchase","130149984","14/12/2016","Environmental Maintenance","Ground Maintenance East","R4000"
"Wolverhampton City Council","http://opendatacommunities.org/id/metropolitan-district-council/wolverhampton","THE Acme Facilities Group Ltd","IN296270","2,990.00","Equipment - Purchase","130149984","14/12/2016","Environmental Maintenance","Ground Maintenance West","R4000"
"Wolverhampton City Council","http://opendatacommunities.org/id/metropolitan-district-council/wolverhampton","THE Acme Facilities Group Ltd","IN296312","85.00","Equipment - Catering","130149987","21/12/2016","Leisure Services","WV Active Catering","R4010"
"Wolverhampton City Council","http://opendatacommunities.org/id/metropolitan-district-council/wolverhampton","THE Acme Facilities Group Ltd","IN296271","445.00","Equipment - Purchase","130149985","14/12/2016","Environmental Maintenance","Ground Maintenance East","R4000"
"Wolverhampton City Council","http://opendatacommunities.org/id/metropolitan-district-council/wolverhampton","THE Acme Facilities Group Ltd","IN296271","445.00","Equipment - Purchase","130149985","14/12/2016","Environmental Maintenance","Ground Maintenance West","R4000"
"Wolverhampton City Council","http://opendatacommunities.org/id/metropolitan-district-council/wolverhampton","THE Acme Facilities Group Ltd","IN296268","360.00","Equipment - Catering","130149983","14/12/2016","Leisure Services","WV Active Catering","R4010"
"Wolverhampton City Council","http://opendatacommunities.org/id/metropolitan-district-council/wolverhampton","Acorn Environmental Mgt Group Limited","9666","16,270.01","Grounds Maintenance - Contract","130149154","21/12/2016","Environmental Maintenance","Arbor Scheme","R2075"
"Wolverhampton City Council","http://opendatacommunities.org/id/metropolitan-district-council/wolverhampton","Acorn Environmental Mgt Group Limited","8913","3,120.00","Grounds Maintenance - Contract","130147363","07/12/2016","Environmental Maintenance","Arbor Scheme","R2075"
"Wolverhampton City Council","http://opendatacommunities.org/id/metropolitan-district-council/wolverhampton","Acorn Environmental Mgt Group Limited","9590","1,205.40","Grounds Maintenance - Contract","130149153","21/12/2016","Environmental Maintenance","Arbor Scheme","R2075"
"Wolverhampton City Council","http://opendatacommunities.org/id/metropolitan-district-council/wolverhampton","Acorn Environmental Mgt Group Limited","8780","1,400.00","Grounds Maintenance - Contract","130148637","14/12/2016","Environmental Maintenance","Arbor Scheme","R2075"
"Wolverhampton City Council","http://opendatacommunities.org/id/metropolitan-district-council/wolverhampton","Acorn Environmental Mgt Group Limited","9631","1,350.00","Services - Professional Fees","130149371","14/12/2016","Housing Revenue Account","HRA General","R4400"
"Wolverhampton City Council","http://opendatacommunities.org/id/metropolitan-district-council/wolverhampton","Acorn Signs (Sedgley) Limited","2662","225.00","Equipment - Purchase","130149081","09/12/2016","Governance Services","Democratic Support","R4000"
"Wolverhampton City Council","http://opendatacommunities.org/id/metropolitan-district-council/wolverhampton","Acs Business Supplies Limited","SINV00348983","48.36","Stationery","130142988","02/12/2016","Catering","Education Catering - General Overheads","R4308"
"Wolverhampton City Council","http://opendatacommunities.org/id/metropolitan-district-council/wolverhampton","Acs Business Supplies Limited","SINV00357476","43.51","Stationery","130149652","22/12/2016","Parking Services","Parking Enforcement","R4308"
"Wolverhampton City Council","http://opendatacommunities.org/id/metropolitan-district-council/wolverhampton","Acs Business Supplies Limited","SINV00357476","71.97","Stationery","130149652","22/12/2016","Parking Services","Shopmobility","R4308"
"Wolverhampton City Council","http://opendatacommunities.org/id/metropolitan-district-council/wolverhampton","Acs Business Supplies Limited","SINV00356921","51.45","Stationery","130148970","22/12/2016","Markets","Bilston Market and Licensed Operations","R4308"
"Wolverhampton City Council","http://opendatacommunities.org/id/metropolitan-district-council/wolverhampton","Acs Business Supplies Limited","SINV00358386","6.88","Stationery","130150236","22/12/2016","Older People Assessment & Care Management","Assessment Team (East)","R4308"
"Wolverhampton City Council","http://opendatacommunities.org/id/metropolitan-district-council/wolverhampton","Acs Business Supplies Limited","SINV00355794","25.05","Stationery","130148719","22/12/2016","Older People Assessment & Care Management","Hospital Team","R4308"
"Wolverhampton City Council","http://opendatacommunities.org/id/metropolitan-district-council/wolverhampton","Acs Business Supplies Limited","SINV00354510","42.99","Stationery","130147189","14/12/2016","Healthier Places Service","Healthy Lifestyles Team","R4308"
"Wolverhampton City Council","http://opendatacommunities.org/id/metropolitan-district-council/wolverhampton","Acs Business Supplies Limited","SINV00353830","126.29","Stationery","130146644","14/12/2016","Visitor Economy","Bilston Museum","R4308"
"Wolverhampton City Council","http://opendatacommunities.org/id/metropolitan-district-council/wolverhampton","Acs Business Supplies Limited","SINV00354772","133.61","Stationery","130147439","16/12/2016","Library Services","Global Budgets","R4308"
"Wolverhampton City Council","http://opendatacommunities.org/id/metropolitan-district-council/wolverhampton","Acs Business Supplies Limited","SINV00354767","29.46","Stationery","130147434","16/12/2016","ICTS","Document Centre - General","R4308"
"Wolverhampton City Council","http://opendatacommunities.org/id/metropolitan-district-council/wolverhampton","Acs Business Supplies Limited","SINV00355072","139.00","Stationery","130148121","21/12/2016","Standards and Vulnerable Pupils","SEN Early Years Team","R4308"
"Wolverhampton City Council","http://opendatacommunities.org/id/metropolitan-district-council/wolverhampton","Acs Business Supplies Limited","SINV00353184","33.65","Stationery","130146196","21/12/2016","Child Protection","CIN/CP Social Work Unit - Area 3","R4308"
"Wolverhampton City Council","http://opendatacommunities.org/id/metropolitan-district-council/wolverhampton","Acs Business Supplies Limited","SINV00353316","14.50","Stationery","130146197","07/12/2016","Welfare Rights & Financial Assessment","Welfare Rights","R4308"
"Wolverhampton City Council","http://opendatacommunities.org/id/metropolitan-district-council/wolverhampton","Acs Business Supplies Limited","SINV00350707","1,000.53","Stationery","130144600","07/12/2016","Customer Services","City Direct","R4308"
"Wolverhampton City Council","http://opendatacommunities.org/id/metropolitan-district-council/wolverhampton","Acs Business Supplies Limited","SINV00352684","143.32","Stationery","130145587","07/12/2016","Public Protection","EHTS Operational Costs","R4308"
"Wolverhampton City Council","http://opendatacommunities.org/id/metropolitan-district-council/wolverhampton","Acs Business Supplies Limited","SINV00352691","66.89","Stationery","130145594","07/12/2016","Older People Assessment & Care Management","Hospital Team","R4308"
"Wolverhampton City Council","http://opendatacommunities.org/id/metropolitan-district-council/wolverhampton","Acs Business Supplies Limited","SINV00355068","228.24","Stationery","130148118","21/12/2016","Youth Offending","Youth Offending Team","R4308"
"Wolverhampton City Council","http://opendatacommunities.org/id/metropolitan-district-council/wolverhampton","Acs Business Supplies Limited","SINV00354773","19.96","Stationery","130147440","16/12/2016","ICTS","Document Centre - General","R4308"
"Wolverhampton City Council","http://opendatacommunities.org/id/metropolitan-district-council/wolverhampton","Acs Business Supplies Limited","SINV00354770","111.89","Stationery","130147437","16/12/2016","Specialist Support","Vulnerable Young Persons Team","R4308"
"Wolverhampton City Council","http://opendatacommunities.org/id/metropolitan-district-council/wolverhampton","Acs Business Supplies Limited","SINV00353832","508.00","Stationery","130146646","14/12/2016","ICTS","Document Centre - General","R4308"
"Wolverhampton City Council","http://opendatacommunities.org/id/metropolitan-district-council/wolverhampton","Acs Business Supplies Limited","SCRN00043486","-27.76","Stationery","130150010","22/12/2016","Visitor Economy","Northicote Farm","R4308"
"Wolverhampton City Council","http://opendatacommunities.org/id/metropolitan-district-council/wolverhampton","Acs Business Supplies Limited","SINV00357887","4.56","Stationery","130150229","22/12/2016","Strategic Director Place","Business Manager - Place","R4308"
"Wolverhampton City Council","http://opendatacommunities.org/id/metropolitan-district-council/wolverhampton","Acs Business Supplies Limited","SINV00358380","51.23","Stationery","130150230","22/12/2016","Revenues & Benefits","Revenues","R4308"
"Wolverhampton City Council","http://opendatacommunities.org/id/metropolitan-district-council/wolverhampton","Acs Business Supplies Limited","SINV00357256","1,673.38","Stationery","130148972","22/12/2016","Adult Education","ICT Services","R4308"
"Wolverhampton City Council","http://opendatacommunities.org/id/metropolitan-district-council/wolverhampton","Acs Business Supplies Limited","SINV00336136","47.87","Stationery","130133468","02/12/2016","Catering","Education Catering - General Overheads","R4308"
"Wolverhampton City Council","http://opendatacommunities.org/id/metropolitan-district-council/wolverhampton","Acs Business Supplies Limited","SINV00355069","242.98","Stationery","130148119","21/12/2016","Catering","Education Catering - General Overheads","R4308"
"Wolverhampton City Council","http://opendatacommunities.org/id/metropolitan-district-council/wolverhampton","Acs Business Supplies Limited","SINV00353982","27.76","Stationery","130146823","14/12/2016","Visitor Economy","Northicote Farm","R4308"
"Wolverhampton City Council","http://opendatacommunities.org/id/metropolitan-district-council/wolverhampton","Acs Business Supplies Limited","SINV00353980","183.65","Stationery","130146821","14/12/2016","Looked After Children","Looked After Team 1","R4308"
"Wolverhampton City Council","http://opendatacommunities.org/id/metropolitan-district-council/wolverhampton","Acs Business Supplies Limited","SINV00354768","719.99","Stationery","130147435","16/12/2016","Quality Assurance and Policies","Quality Assurance and Policies","R4308"
"Wolverhampton City Council","http://opendatacommunities.org/id/metropolitan-district-council/wolverhampton","Acs Business Supplies Limited","SINV00352687","19.01","Stationery","130145590","07/12/2016","Specialist Support","Upper Pendeford Farm Short Breaks Centre","R4308"
"Wolverhampton City Council","http://opendatacommunities.org/id/metropolitan-district-council/wolverhampton","Acs Business Supplies Limited","SINV00352682","137.61","Stationery","130145585","07/12/2016","Learning Disability Provider","Duke Street Bungalows","R4308"
"Wolverhampton City Council","http://opendatacommunities.org/id/metropolitan-district-council/wolverhampton","Acs Business Supplies Limited","SINV00334230","19.99","Stationery","130148714","09/12/2016","Catering","Education Catering - General Overheads","R4308"
"Wolverhampton City Council","http://opendatacommunities.org/id/metropolitan-district-council/wolverhampton","Acs Business Supplies Limited","SINV00335583","21.49","Stationery","130132818","02/12/2016","Environmental Maintenance","Ground Maintenance West","R4308"
"Wolverhampton City Council","http://opendatacommunities.org/id/metropolitan-district-council/wolverhampton","Acs Business Supplies Limited","SINV00358385","47.19","Stationery","130150235","22/12/2016","Learning Disability Provider","Learning Disabilities Management","R4308"
"Wolverhampton City Council","http://opendatacommunities.org/id/metropolitan-district-council/wolverhampton","Acs Business Supplies Limited","SINV00358383","17.16","Stationery","130150233","22/12/2016","Strategic Director Place","Business Manager - Place","R4308"
"Wolverhampton City Council","http://opendatacommunities.org/id/metropolitan-district-council/wolverhampton","Acs Business Supplies Limited","SINV00356273","163.74","Stationery","130148962","22/12/2016","Bereavement Services","Cemeteries","R4308"
"Wolverhampton City Council","http://opendatacommunities.org/id/metropolitan-district-council/wolverhampton","Acs Business Supplies Limited","SINV00356276","99.29","Stationery","130148965","22/12/2016","Psychology","Inclusion Support","R4308"
"Wolverhampton City Council","http://opendatacommunities.org/id/metropolitan-district-council/wolverhampton","Acs Business Supplies Limited","SINV00355071","35.55","Stationery","130148120","21/12/2016","Specialist Support","Upper Pendeford Farm Short Breaks Centre","R4308"
"Wolverhampton City Council","http://opendatacommunities.org/id/metropolitan-district-council/wolverhampton","Acs Business Supplies Limited","SINV00354766","506.00","Stationery","130147433","16/12/2016","ICTS","Document Centre - General","R4308"
"Wolverhampton City Council","http://opendatacommunities.org/id/metropolitan-district-council/wolverhampton","Acs Business Supplies Limited","SINV00353834","33.25","Stationery","130146648","14/12/2016","Child Protection","CIN/CP Social Work Unit - Area 6","R4308"
"Wolverhampton City Council","http://opendatacommunities.org/id/metropolitan-district-council/wolverhampton","Acs Business Supplies Limited","SCRN00039864","-126.80","Stationery","130146638","14/12/2016","Early Intervention","EIP Locality 8","R4308"
"Wolverhampton City Council","http://opendatacommunities.org/id/metropolitan-district-council/wolverhampton","Acs Business Supplies Limited","SINV00352688","11.43","Stationery","130145591","07/12/2016","School Planning & Resources","Education Data Services","R4308"
"Wolverhampton City Council","http://opendatacommunities.org/id/metropolitan-district-council/wolverhampton","Acs Business Supplies Limited","SINV00340255","3,850.00","Stationery","130148715","07/12/2016","Legal Services","Legal Services","R4308"
"Wolverhampton City Council","http://opendatacommunities.org/id/metropolitan-district-council/wolverhampton","Acs Business Supplies Limited","SINV00357881","160.54","Stationery","130150223","22/12/2016","Strategic Director Place","Business Manager - Place","R4308"
"Wolverhampton City Council","http://opendatacommunities.org/id/metropolitan-district-council/wolverhampton","Acs Business Supplies Limited","SINV00356674","315.57","Stationery","130148967","22/12/2016","Legal Services","Legal Services","R4308"
"Wolverhampton City Council","http://opendatacommunities.org/id/metropolitan-district-council/wolverhampton","Acs Business Supplies Limited","SINV00356596","46.22","Stationery","130148966","22/12/2016","Welfare Rights & Financial Assessment","Macmillan Welfare Rights Service","R4308"
"Wolverhampton City Council","http://opendatacommunities.org/id/metropolitan-district-council/wolverhampton","Acs Business Supplies Limited","SINV00355790","39.39","Stationery","130148716","22/12/2016","Environmental Maintenance","Ground Maintenance Overheads","R4308"
"Wolverhampton City Council","http://opendatacommunities.org/id/metropolitan-district-council/wolverhampton","Acs Business Supplies Limited","SINV00355790","32.28","Stationery","130148716","22/12/2016","Environmental Maintenance","Street Cleansing Overheads","R4308"
"Wolverhampton City Council","http://opendatacommunities.org/id/metropolitan-district-council/wolverhampton","Acs Business Supplies Limited","SINV00351719","29.01","Stationery","130145137","21/12/2016","Adult Education","Work Related Studies","R4308"
"Wolverhampton City Council","http://opendatacommunities.org/id/metropolitan-district-council/wolverhampton","Acs Business Supplies Limited","SINV00355074","118.39","Stationery","130148123","21/12/2016","Cleaning","Cleaning of Buildings - General","R4308"
"Wolverhampton City Council","http://opendatacommunities.org/id/metropolitan-district-council/wolverhampton","Acs Business Supplies Limited","SINV00354774","195.07","Stationery","130147441","16/12/2016","Looked After Children","LAC Transitions Team","R4308"
"Wolverhampton City Council","http://opendatacommunities.org/id/metropolitan-district-council/wolverhampton","Acs Business Supplies Limited","SINV00354776","74.85","Stationery","130147443","16/12/2016","Child Protection","MASH","R4308"
"Wolverhampton City Council","http://opendatacommunities.org/id/metropolitan-district-council/wolverhampton","Acs Business Supplies Limited","SINV00353984","14.99","Stationery","130146824","14/12/2016","Fleet Services","Fleet Management","R4308"
"Wolverhampton City Council","http://opendatacommunities.org/id/metropolitan-district-council/wolverhampton","Acs Business Supplies Limited","SINV00353183","37.51","Stationery","130146195","07/12/2016","Safeguarding","Head of Service Quality and Safeguarding","R4308"
"Wolverhampton City Council","http://opendatacommunities.org/id/metropolitan-district-council/wolverhampton","Acs Business Supplies Limited","SINV00357475","86.97","Stationery","130149651","22/12/2016","Specialist Support","Upper Pendeford Farm Short Breaks Centre","R4308"
"Wolverhampton City Council","http://opendatacommunities.org/id/metropolitan-district-council/wolverhampton","Acs Business Supplies Limited","SINV00358381","63.40","Stationery","130150231","22/12/2016","Library Services","Global Budgets","R4308"
"Wolverhampton City Council","http://opendatacommunities.org/id/metropolitan-district-council/wolverhampton","Acs Business Supplies Limited","SINV00355792","27.82","Stationery","130148717","22/12/2016","Welfare Rights & Financial Assessment","Welfare Rights","R4308"
"Wolverhampton City Council","http://opendatacommunities.org/id/metropolitan-district-council/wolverhampton","Acs Business Supplies Limited","SINV00356274","236.72","Stationery","130148963","22/12/2016","Adult Education","Service Wide","R4308"
"Wolverhampton City Council","http://opendatacommunities.org/id/metropolitan-district-council/wolverhampton","Acs Business Supplies Limited","SCRN00042544","-49.98","Stationery","130147428","02/12/2016","Catering","Education Catering - General Overheads","R4308"
"Wolverhampton City Council","http://opendatacommunities.org/id/metropolitan-district-council/wolverhampton","Acs Business Supplies Limited","SINV00352686","95.69","Stationery","130145589","07/12/2016","Governance Services","Democratic Support","R4308"
"Wolverhampton City Council","http://opendatacommunities.org/id/metropolitan-district-council/wolverhampton","Acs Business Supplies Limited","SINV00352683","132.00","Stationery","130145586","07/12/2016","Library Services","Global Budgets","R4308"
"Wolverhampton City Council","http://opendatacommunities.org/id/metropolitan-district-council/wolverhampton","Acs Business Supplies Limited","SINV00355231","19.02","Stationery","130148125","21/12/2016","Older People Assessment & Care Management","Assessment Team (East)","R4308"
"Wolverhampton City Council","http://opendatacommunities.org/id/metropolitan-district-council/wolverhampton","Acs Business Supplies Limited","SINV00354509","97.65","Stationery","130147188","14/12/2016","ICTS","Document Centre - General","R4308"
"Wolverhampton City Council","http://opendatacommunities.org/id/metropolitan-district-council/wolverhampton","Acs Business Supplies Limited","SINV00354771","126.00","Stationery","130147438","16/12/2016","Adult Education","Service Wide","R4308"
"Wolverhampton City Council","http://opendatacommunities.org/id/metropolitan-district-council/wolverhampton","Acs Business Supplies Limited","SINV00345915","49.98","Stationery","130140189","02/12/2016","Catering","Education Catering - General Overheads","R4308"
"Wolverhampton City Council","http://opendatacommunities.org/id/metropolitan-district-council/wolverhampton","Acs Business Supplies Limited","SINV00356275","63.00","Stationery","130148964","22/12/2016","Specialist Support","Intensive Family Support Team","R4308"
"Wolverhampton City Council","http://opendatacommunities.org/id/metropolitan-district-council/wolverhampton","Acs Business Supplies Limited","SINV00357426","119.96","Stationery","130149232","22/12/2016","ICTS","Strategic ICTS (ICT Service Budget)","R4308"
"Wolverhampton City Council","http://opendatacommunities.org/id/metropolitan-district-council/wolverhampton","Acs Business Supplies Limited","SINV00357179","26.35","Stationery","130148971","22/12/2016","Skills","Connexions Contract","R4308"
"Wolverhampton City Council","http://opendatacommunities.org/id/metropolitan-district-council/wolverhampton","Acs Business Supplies Limited","SINV00353981","46.87","Stationery","130146822","14/12/2016","Visitor Economy","Archives","R4308"
"Wolverhampton City Council","http://opendatacommunities.org/id/metropolitan-district-council/wolverhampton","Acs Business Supplies Limited","SINV00353983","21.99","Stationery","130146967","14/12/2016","Early Years","Early Years & Universal Service","R4308"
"Wolverhampton City Council","http://opendatacommunities.org/id/metropolitan-district-council/wolverhampton","Acs Business Supplies Limited","SINV00354775","82.32","Stationery","130147442","16/12/2016","Visitor Economy","Catering Overhead Account","R4308"
"Wolverhampton City Council","http://opendatacommunities.org/id/metropolitan-district-council/wolverhampton","Acs Business Supplies Limited","SINV00355075","63.37","Stationery","130148124","21/12/2016","Early Years","Early Years & Universal Service","R4308"
"Wolverhampton City Council","http://opendatacommunities.org/id/metropolitan-district-council/wolverhampton","Acs Business Supplies Limited","SINV00352689","48.25","Stationery","130145592","07/12/2016","Strategic Director Place","Business Manager - Place","R4308"
"Wolverhampton City Council","http://opendatacommunities.org/id/metropolitan-district-council/wolverhampton","Acs Business Supplies Limited","SINV00352694","84.81","Stationery","130145596","07/12/2016","Strategic Director Place","Business Manager - Place","R4308"
"Wolverhampton City Council","http://opendatacommunities.org/id/metropolitan-district-council/wolverhampton","Acs Business Supplies Limited","SCRN00042869","-48.36","Stationery","130147429","02/12/2016","Catering","Education Catering - General Overheads","R4308"
"Wolverhampton City Council","http://opendatacommunities.org/id/metropolitan-district-council/wolverhampton","Acs Business Supplies Limited","SINV00358382","69.47","Stationery","130150232","22/12/2016","Carer Support","Carers Support","R4308"
"Wolverhampton City Council","http://opendatacommunities.org/id/metropolitan-district-council/wolverhampton","Acs Business Supplies Limited","SINV00357882","31.65","Stationery","130150224","22/12/2016","Welfare Rights & Financial Assessment","Financial Assessments","R4308"
"Wolverhampton City Council","http://opendatacommunities.org/id/metropolitan-district-council/wolverhampton","Acs Business Supplies Limited","SINV00355793","142.20","Stationery","130148718","22/12/2016","Skills","European Liaison","R4308"
"Wolverhampton City Council","http://opendatacommunities.org/id/metropolitan-district-council/wolverhampton","Acs Business Supplies Limited","SINV00355073","27.76","Stationery","130148122","21/12/2016","Visitor Economy","Northicote Farm","R4308"
"Wolverhampton City Council","http://opendatacommunities.org/id/metropolitan-district-council/wolverhampton","Acs Business Supplies Limited","SINV00354769","208.85","Stationery","130147436","16/12/2016","Strategic Director Place","Business Manager - Place","R4308"
"Wolverhampton City Council","http://opendatacommunities.org/id/metropolitan-district-council/wolverhampton","Acs Business Supplies Limited","SINV00353836","12.68","Stationery","130146650","14/12/2016","Standards and Vulnerable Pupils","Parent / Partnership Service","R4308"
"Wolverhampton City Council","http://opendatacommunities.org/id/metropolitan-district-council/wolverhampton","Acs Business Supplies Limited","SINV00353831","273.14","Stationery","130146645","14/12/2016","Adult Education","Service Wide","R4308"
"Wolverhampton City Council","http://opendatacommunities.org/id/metropolitan-district-council/wolverhampton","Acs Business Supplies Limited","SINV00353380","60.06","Stationery","130146430","07/12/2016","Fleet Services","Passenger Transport - General","R4308"
"Wolverhampton City Council","http://opendatacommunities.org/id/metropolitan-district-council/wolverhampton","Acs Business Supplies Limited","SINV00352690","507.20","Stationery","130145593","07/12/2016","ICTS","Document Centre - General","R4308"
"Wolverhampton City Council","http://opendatacommunities.org/id/metropolitan-district-council/wolverhampton","Acs Business Supplies Limited","SINV00356919","138.80","Stationery","130148968","22/12/2016","Bereavement Services","Cemeteries","R4308"
"Wolverhampton City Council","http://opendatacommunities.org/id/metropolitan-district-council/wolverhampton","Acs Business Supplies Limited","SINV00356920","60.16","Stationery","130148969","22/12/2016","Environmental Maintenance","Parks - Ranger Service","R4308"
"Wolverhampton City Council","http://opendatacommunities.org/id/metropolitan-district-council/wolverhampton","Acs Business Supplies Limited","SINV00356272","30.06","Stationery","130148961","22/12/2016","Specialist Support","Vulnerable Young Persons Team","R4308"
"Wolverhampton City Council","http://opendatacommunities.org/id/metropolitan-district-council/wolverhampton","Neil Roberts","044","937.50","Services - Professional Fees","130149436","14/12/2016","Visitor Economy","Civic Halls Non-Direct Event Management Account","R4400"
"Wolverhampton City Council","http://opendatacommunities.org/id/metropolitan-district-council/wolverhampton","P Kitterick","00025","460.00","TPP - Maintenance Contractor - General","190293032","09/12/2016","Parking Services","Cycling Schemes - Bikeability","R5720"
"Wolverhampton City Council","http://opendatacommunities.org/id/metropolitan-district-council/wolverhampton","Partisip8/P Sicilia","711/1","150.00","TPP - Maintenance Contractor - General","190293029","09/12/2016","Parking Services","Cycling Schemes - Training West Midlands","R5720"
"Wolverhampton City Council","http://opendatacommunities.org/id/metropolitan-district-council/wolverhampton","Partisip8/P Sicilia","711","1,420.00","TPP - Maintenance Contractor - General","190293028","09/12/2016","Parking Services","Cycling Schemes - Bikeability","R5720"
"Wolverhampton City Council","http://opendatacommunities.org/id/metropolitan-district-council/wolverhampton","Philip Lay","0016","1,230.00","TPP - Maintenance Contractor - General","190293030","09/12/2016","Parking Services","Cycling Schemes - Bikeability","R5720"
"Wolverhampton City Council","http://opendatacommunities.org/id/metropolitan-district-council/wolverhampton","R Millard","0033/1","165.00","Services - Professional Fees","190293022","09/12/2016","Parking Services","Advisory Road Markings and Disabled Bays","R4400"
"Wolverhampton City Council","http://opendatacommunities.org/id/metropolitan-district-council/wolverhampton","R Millard","0033","5.00","TPP - Maintenance Contractor - General","190293021","09/12/2016","Parking Services","Cycling Schemes - Bikeability","R5720"
"Wolverhampton City Council","http://opendatacommunities.org/id/metropolitan-district-council/wolverhampton","R Millington","00027","510.00","TPP - Maintenance Contractor - General","190293024","09/12/2016","Parking Services","Cycling Schemes - Bikeability","R5720"
"Wolverhampton City Council","http://opendatacommunities.org/id/metropolitan-district-council/wolverhampton","Adt Fire And Security PLC","34282411 - 02","1,578.00","Construction and Conversion","130150137","22/12/2016","-","Markets Bilston Retail Market","C1100"
"Wolverhampton City Council","http://opendatacommunities.org/id/metropolitan-district-council/wolverhampton","Adt Fire And Security PLC","33786368-02","74.00","Fixtures and Fittings - R&M","130148003","09/12/2016","Maintenance Programme","Centralised R&M","R2502"
"Wolverhampton City Council","http://opendatacommunities.org/id/metropolitan-district-council/wolverhampton","Adt Fire And Security PLC","33017049 - 02","559.63","Fixtures and Fittings - R&M","130149101","14/12/2016","Maintenance Programme","Centralised R&M","R2502"
"Wolverhampton City Council","http://opendatacommunities.org/id/metropolitan-district-council/wolverhampton","Adt Fire And Security PLC","34024660 - 02","194.00","Services - Security","130149102","14/12/2016","Maintenance Programme","Centralised R&M","R4405"
"Wolverhampton City Council","http://opendatacommunities.org/id/metropolitan-district-council/wolverhampton","Af Blakemore/Blakemore Foodservice","INV4572738","299.92","Provisions (Resale)","130148375","07/12/2016","Learning Disability Provider","Duke Street Bungalows","R4102"
"Wolverhampton City Council","http://opendatacommunities.org/id/metropolitan-district-council/wolverhampton","Af Blakemore/Blakemore Foodservice","INV4572738","134.26","Provisions (Resale)","130148375","07/12/2016","Learning Disability Provider","Duke Street Bungalows","R4102"
"Wolverhampton City Council","http://opendatacommunities.org/id/metropolitan-district-council/wolverhampton","Af Blakemore/Blakemore Foodservice","INV4530379","51.68","Provisions (Resale)","130148370","14/12/2016","Older People Provider Services","Blakenhall Resource Centre","R4102"
"Wolverhampton City Council","http://opendatacommunities.org/id/metropolitan-district-council/wolverhampton","Af Blakemore/Blakemore Foodservice","INV4530379","3.50","Provisions (Resale)","130148370","14/12/2016","Older People Provider Services","Blakenhall Resource Centre","R4102"
"Wolverhampton City Council","http://opendatacommunities.org/id/metropolitan-district-council/wolverhampton","Af Blakemore/Blakemore Foodservice","5304517","20.31","Provisions (Not for resale)","130149933","22/12/2016","Older People Provider Services","Blakenhall Resource Centre","R4101"
"Wolverhampton City Council","http://opendatacommunities.org/id/metropolitan-district-council/wolverhampton","Af Blakemore/Blakemore Foodservice","5284595","52.92","Provisions (Not for resale)","130148619","21/12/2016","Library Services","Central Children�s Library","R4101"
"Wolverhampton City Council","http://opendatacommunities.org/id/metropolitan-district-council/wolverhampton","Af Blakemore/Blakemore Foodservice","INV4314936","10.36","Provisions (Resale)","130148362","14/12/2016","Older People Provider Services","Blakenhall Resource Centre","R4102"
"Wolverhampton City Council","http://opendatacommunities.org/id/metropolitan-district-council/wolverhampton","Af Blakemore/Blakemore Foodservice","INV4314936","47.69","Provisions (Resale)","130148362","14/12/2016","Older People Provider Services","Blakenhall Resource Centre","R4102"
"Wolverhampton City Council","http://opendatacommunities.org/id/metropolitan-district-council/wolverhampton","Af Blakemore/Blakemore Foodservice","INV4318999","12.24","Provisions (Resale)","130148364","07/12/2016","Learning Disability Provider","Duke Street Bungalows","R4102"
"Wolverhampton City Council","http://opendatacommunities.org/id/metropolitan-district-council/wolverhampton","Af Blakemore/Blakemore Foodservice","WCC000210","870.06","Provisions (Resale)","130146655","16/12/2016","Catering","Civic Centre Catering","R4102"
"Wolverhampton City Council","http://opendatacommunities.org/id/metropolitan-district-council/wolverhampton","Af Blakemore/Blakemore Foodservice","WCC000210","-870.06","Provisions (Resale)","130146655","16/12/2016","Catering","Civic Centre Catering","R4102"
"Wolverhampton City Council","http://opendatacommunities.org/id/metropolitan-district-council/wolverhampton","Af Blakemore/Blakemore Foodservice","WCC000210","849.54","Provisions (Resale)","130146655","16/12/2016","Catering","Civic Centre Catering","R4102"
"Wolverhampton City Council","http://opendatacommunities.org/id/metropolitan-district-council/wolverhampton","Af Blakemore/Blakemore Foodservice","WCC000210","20.52","Provisions (Resale)","130146655","16/12/2016","Catering","Civic Centre Catering","R4102"
"Wolverhampton City Council","http://opendatacommunities.org/id/metropolitan-district-council/wolverhampton","Af Blakemore/Blakemore Foodservice","5301497","382.86","Provisions (Not for resale)","130149932","22/12/2016","Learning Disability Provider","Duke Street Bungalows","R4101"
"Wolverhampton City Council","http://opendatacommunities.org/id/metropolitan-district-council/wolverhampton","Af Blakemore/Blakemore Foodservice","5301497","-382.86","Provisions (Not for resale)","130149932","22/12/2016","Learning Disability Provider","Duke Street Bungalows","R4101"
"Wolverhampton City Council","http://opendatacommunities.org/id/metropolitan-district-council/wolverhampton","Af Blakemore/Blakemore Foodservice","5301497","286.32","Provisions (Not for resale)","130149932","22/12/2016","Learning Disability Provider","Duke Street Bungalows","R4101"
"Wolverhampton City Council","http://opendatacommunities.org/id/metropolitan-district-council/wolverhampton","Af Blakemore/Blakemore Foodservice","5301497","96.54","Provisions (Not for resale)","130149932","22/12/2016","Learning Disability Provider","Duke Street Bungalows","R4101"
"Wolverhampton City Council","http://opendatacommunities.org/id/metropolitan-district-council/wolverhampton","Af Blakemore/Blakemore Foodservice","INV4552392","6.28","Provisions (Resale)","130148374","14/12/2016","Older People Provider Services","Blakenhall Resource Centre","R4102"
"Wolverhampton City Council","http://opendatacommunities.org/id/metropolitan-district-council/wolverhampton","Af Blakemore/Blakemore Foodservice","INV4317924","12.24","Provisions (Resale)","130148363","07/12/2016","Learning Disability Provider","Duke Street Bungalows","R4102"
"Wolverhampton City Council","http://opendatacommunities.org/id/metropolitan-district-council/wolverhampton","Af Blakemore/Blakemore Foodservice","5108689","22.20","Provisions (Resale)","130135305","07/12/2016","Older People Provider Services","Bradley Lodge Resource Centre","R4102"
"Wolverhampton City Council","http://opendatacommunities.org/id/metropolitan-district-council/wolverhampton","Af Blakemore/Blakemore Foodservice","5272435","17.92","Provisions (Not for resale)","130148020","22/12/2016","Learning Disability Provider","Duke Street Bungalows","R4101"
"Wolverhampton City Council","http://opendatacommunities.org/id/metropolitan-district-council/wolverhampton","Af Blakemore/Blakemore Foodservice","5272435","-17.92","Provisions (Not for resale)","130148020","22/12/2016","Learning Disability Provider","Duke Street Bungalows","R4101"
"Wolverhampton City Council","http://opendatacommunities.org/id/metropolitan-district-council/wolverhampton","Af Blakemore/Blakemore Foodservice","5272435","2.22","Provisions (Not for resale)","130148020","22/12/2016","Learning Disability Provider","Duke Street Bungalows","R4101"
"Wolverhampton City Council","http://opendatacommunities.org/id/metropolitan-district-council/wolverhampton","Af Blakemore/Blakemore Foodservice","5272435","15.70","Provisions (Not for resale)","130148020","22/12/2016","Learning Disability Provider","Duke Street Bungalows","R4101"
"Wolverhampton City Council","http://opendatacommunities.org/id/metropolitan-district-council/wolverhampton","Af Blakemore/Blakemore Foodservice","INV4578754","37.83","Provisions (Resale)","130148376","07/12/2016","Older People Provider Services","Ekta Day Centre","R4102"
"Wolverhampton City Council","http://opendatacommunities.org/id/metropolitan-district-council/wolverhampton","Af Blakemore/Blakemore Foodservice","INV4578754","9.67","Provisions (Resale)","130148376","07/12/2016","Older People Provider Services","Ekta Day Centre","R4102"
"Wolverhampton City Council","http://opendatacommunities.org/id/metropolitan-district-council/wolverhampton","Af Blakemore/Blakemore Foodservice","5202762","149.95","Provisions (Resale)","130138003","16/12/2016","Older People Provider Services","Bradley Lodge Resource Centre","R4102"
"Wolverhampton City Council","http://opendatacommunities.org/id/metropolitan-district-council/wolverhampton","Af Blakemore/Blakemore Foodservice","5202762","-149.95","Provisions (Resale)","130138003","16/12/2016","Older People Provider Services","Bradley Lodge Resource Centre","R4102"
"Wolverhampton City Council","http://opendatacommunities.org/id/metropolitan-district-council/wolverhampton","Af Blakemore/Blakemore Foodservice","5202762","107.76","Provisions (Resale)","130138003","16/12/2016","Older People Provider Services","Bradley Lodge Resource Centre","R4102"
"Wolverhampton City Council","http://opendatacommunities.org/id/metropolitan-district-council/wolverhampton","Af Blakemore/Blakemore Foodservice","5202762","42.19","Provisions (Resale)","130138003","16/12/2016","Older People Provider Services","Bradley Lodge Resource Centre","R4102"
"Wolverhampton City Council","http://opendatacommunities.org/id/metropolitan-district-council/wolverhampton","Af Blakemore/Blakemore Foodservice","INV4540319","4.17","Provisions (Resale)","130148373","14/12/2016","Older People Provider Services","Blakenhall Resource Centre","R4102"
"Wolverhampton City Council","http://opendatacommunities.org/id/metropolitan-district-council/wolverhampton","Af Blakemore/Blakemore Foodservice","INV4240182","224.18","Provisions (Resale)","130148379","07/12/2016","Learning Disability Provider","Duke Street Bungalows","R4102"
"Wolverhampton City Council","http://opendatacommunities.org/id/metropolitan-district-council/wolverhampton","Af Blakemore/Blakemore Foodservice","WCC000213","56,575.66","Provisions (Resale)","130146657","16/12/2016","Catering","Education Catering - General Overheads","R4102"
"Wolverhampton City Council","http://opendatacommunities.org/id/metropolitan-district-council/wolverhampton","Af Blakemore/Blakemore Foodservice","WCC000213","-56,575.66","Provisions (Resale)","130146657","16/12/2016","Catering","Education Catering - General Overheads","R4102"
"Wolverhampton City Council","http://opendatacommunities.org/id/metropolitan-district-council/wolverhampton","Af Blakemore/Blakemore Foodservice","WCC000213","48,068.53","Provisions (Resale)","130146657","16/12/2016","Catering","Education Catering - General Overheads","R4102"
"Wolverhampton City Council","http://opendatacommunities.org/id/metropolitan-district-council/wolverhampton","Af Blakemore/Blakemore Foodservice","WCC000213","8,507.13","Provisions (Resale)","130146657","16/12/2016","Catering","Education Catering - General Overheads","R4102"
"Wolverhampton City Council","http://opendatacommunities.org/id/metropolitan-district-council/wolverhampton","Af Blakemore/Blakemore Foodservice","5282128","88.45","Provisions (Not for resale)","130148021","22/12/2016","Learning Disability Provider","Duke Street Bungalows","R4101"
"Wolverhampton City Council","http://opendatacommunities.org/id/metropolitan-district-council/wolverhampton","Af Blakemore/Blakemore Foodservice","5274343","203.14","Provisions (Not for resale)","130146726","09/12/2016","Older People Provider Services","Blakenhall Resource Centre","R4101"
"Wolverhampton City Council","http://opendatacommunities.org/id/metropolitan-district-council/wolverhampton","Af Blakemore/Blakemore Foodservice","5274343","-203.14","Provisions (Not for resale)","130146726","09/12/2016","Older People Provider Services","Blakenhall Resource Centre","R4101"
"Wolverhampton City Council","http://opendatacommunities.org/id/metropolitan-district-council/wolverhampton","Af Blakemore/Blakemore Foodservice","5274343","35.89","Provisions (Not for resale)","130146726","09/12/2016","Older People Provider Services","Blakenhall Resource Centre","R4101"
"Wolverhampton City Council","http://opendatacommunities.org/id/metropolitan-district-council/wolverhampton","Af Blakemore/Blakemore Foodservice","5274343","167.25","Provisions (Not for resale)","130146726","09/12/2016","Older People Provider Services","Blakenhall Resource Centre","R4101"
"Wolverhampton City Council","http://opendatacommunities.org/id/metropolitan-district-council/wolverhampton","Af Blakemore/Blakemore Foodservice","5272195","317.70","Provisions (Not for resale)","130146344","07/12/2016","Learning Disability Provider","Duke Street Bungalows","R4101"
"Wolverhampton City Council","http://opendatacommunities.org/id/metropolitan-district-council/wolverhampton","Af Blakemore/Blakemore Foodservice","5272195","-317.70","Provisions (Not for resale)","130146344","07/12/2016","Learning Disability Provider","Duke Street Bungalows","R4101"
"Wolverhampton City Council","http://opendatacommunities.org/id/metropolitan-district-council/wolverhampton","Af Blakemore/Blakemore Foodservice","5272195","297.73","Provisions (Not for resale)","130146344","07/12/2016","Learning Disability Provider","Duke Street Bungalows","R4101"
"Wolverhampton City Council","http://opendatacommunities.org/id/metropolitan-district-council/wolverhampton","Af Blakemore/Blakemore Foodservice","5272195","19.97","Provisions (Not for resale)","130146344","07/12/2016","Learning Disability Provider","Duke Street Bungalows","R4101"
"Wolverhampton City Council","http://opendatacommunities.org/id/metropolitan-district-council/wolverhampton","Af Blakemore/Blakemore Foodservice","5272402","237.37","Provisions (Not for resale)","130146345","07/12/2016","Learning Disability Provider","Duke Street Bungalows","R4101"
"Wolverhampton City Council","http://opendatacommunities.org/id/metropolitan-district-council/wolverhampton","Af Blakemore/Blakemore Foodservice","5272402","-237.37","Provisions (Not for resale)","130146345","07/12/2016","Learning Disability Provider","Duke Street Bungalows","R4101"
"Wolverhampton City Council","http://opendatacommunities.org/id/metropolitan-district-council/wolverhampton","Af Blakemore/Blakemore Foodservice","5272402","206.23","Provisions (Not for resale)","130146345","07/12/2016","Learning Disability Provider","Duke Street Bungalows","R4101"
"Wolverhampton City Council","http://opendatacommunities.org/id/metropolitan-district-council/wolverhampton","Af Blakemore/Blakemore Foodservice","5272402","31.14","Provisions (Not for resale)","130146345","07/12/2016","Learning Disability Provider","Duke Street Bungalows","R4101"
"Wolverhampton City Council","http://opendatacommunities.org/id/metropolitan-district-council/wolverhampton","Af Blakemore/Blakemore Foodservice","5202774","49.01","Provisions (Resale)","130138004","16/12/2016","Older People Provider Services","Bradley Lodge Resource Centre","R4102"
"Wolverhampton City Council","http://opendatacommunities.org/id/metropolitan-district-council/wolverhampton","Af Blakemore/Blakemore Foodservice","5202774","-49.01","Provisions (Resale)","130138004","16/12/2016","Older People Provider Services","Bradley Lodge Resource Centre","R4102"
"Wolverhampton City Council","http://opendatacommunities.org/id/metropolitan-district-council/wolverhampton","Af Blakemore/Blakemore Foodservice","5202774","35.64","Provisions (Resale)","130138004","16/12/2016","Older People Provider Services","Bradley Lodge Resource Centre","R4102"
"Wolverhampton City Council","http://opendatacommunities.org/id/metropolitan-district-council/wolverhampton","Af Blakemore/Blakemore Foodservice","5202774","13.37","Provisions (Resale)","130138004","16/12/2016","Older People Provider Services","Bradley Lodge Resource Centre","R4102"
"Wolverhampton City Council","http://opendatacommunities.org/id/metropolitan-district-council/wolverhampton","Af Blakemore/Blakemore Foodservice","INV4304566","69.05","Provisions (Resale)","130148380","14/12/2016","Older People Provider Services","Blakenhall Resource Centre","R4102"
"Wolverhampton City Council","http://opendatacommunities.org/id/metropolitan-district-council/wolverhampton","Af Blakemore/Blakemore Foodservice","INV4304566","5.18","Provisions (Resale)","130148380","14/12/2016","Older People Provider Services","Blakenhall Resource Centre","R4102"
"Wolverhampton City Council","http://opendatacommunities.org/id/metropolitan-district-council/wolverhampton","Af Blakemore/Blakemore Foodservice","5271365","171.80","Provisions (Not for resale)","130146114","07/12/2016","Learning Disability Provider","Duke Street Bungalows","R4101"
"Wolverhampton City Council","http://opendatacommunities.org/id/metropolitan-district-council/wolverhampton","Af Blakemore/Blakemore Foodservice","5271365","-171.80","Provisions (Not for resale)","130146114","07/12/2016","Learning Disability Provider","Duke Street Bungalows","R4101"
"Wolverhampton City Council","http://opendatacommunities.org/id/metropolitan-district-council/wolverhampton","Af Blakemore/Blakemore Foodservice","5271365","164.61","Provisions (Not for resale)","130146114","07/12/2016","Learning Disability Provider","Duke Street Bungalows","R4101"
"Wolverhampton City Council","http://opendatacommunities.org/id/metropolitan-district-council/wolverhampton","Af Blakemore/Blakemore Foodservice","5271365","7.19","Provisions (Not for resale)","130146114","07/12/2016","Learning Disability Provider","Duke Street Bungalows","R4101"
"Wolverhampton City Council","http://opendatacommunities.org/id/metropolitan-district-council/wolverhampton","Af Blakemore/Blakemore Foodservice","WCC000215","2,762.03","Provisions (Resale)","130146659","16/12/2016","Catering","Civic Centre Catering","R4102"
"Wolverhampton City Council","http://opendatacommunities.org/id/metropolitan-district-council/wolverhampton","Af Blakemore/Blakemore Foodservice","WCC000215","-2,762.03","Provisions (Resale)","130146659","16/12/2016","Catering","Civic Centre Catering","R4102"
"Wolverhampton City Council","http://opendatacommunities.org/id/metropolitan-district-council/wolverhampton","Af Blakemore/Blakemore Foodservice","WCC000215","1,183.87","Provisions (Resale)","130146659","16/12/2016","Catering","Civic Centre Catering","R4102"
"Wolverhampton City Council","http://opendatacommunities.org/id/metropolitan-district-council/wolverhampton","Af Blakemore/Blakemore Foodservice","WCC000215","1,578.16","Provisions (Resale)","130146659","16/12/2016","Catering","Civic Centre Catering","R4102"
"Wolverhampton City Council","http://opendatacommunities.org/id/metropolitan-district-council/wolverhampton","Af Blakemore/Blakemore Foodservice","INV4310268","3.50","Provisions (Resale)","130148381","14/12/2016","Older People Provider Services","Blakenhall Resource Centre","R4102"
"Wolverhampton City Council","http://opendatacommunities.org/id/metropolitan-district-council/wolverhampton","Af Blakemore/Blakemore Foodservice","INV4310268","12.24","Provisions (Resale)","130148381","14/12/2016","Older People Provider Services","Blakenhall Resource Centre","R4102"
"Wolverhampton City Council","http://opendatacommunities.org/id/metropolitan-district-council/wolverhampton","Af Blakemore/Blakemore Foodservice","INV4535743","29.18","Provisions (Resale)","130148371","14/12/2016","Older People Provider Services","Blakenhall Resource Centre","R4102"
"Wolverhampton City Council","http://opendatacommunities.org/id/metropolitan-district-council/wolverhampton","Af Blakemore/Blakemore Foodservice","5282074","79.96","Provisions (Not for resale)","130148250","14/12/2016","Learning Disability Provider","Duke Street Bungalows","R4101"
"Wolverhampton City Council","http://opendatacommunities.org/id/metropolitan-district-council/wolverhampton","Af Blakemore/Blakemore Foodservice","INV4476310","-4.72","Provisions (Resale)","130148366","07/12/2016","Older People Provider Services","Blakenhall Resource Centre","R4102"
"Wolverhampton City Council","http://opendatacommunities.org/id/metropolitan-district-council/wolverhampton","Af Blakemore/Blakemore Foodservice","WCC000214","92,228.76","Provisions (Resale)","130146658","16/12/2016","Catering","Education Catering - General Overheads","R4102"
"Wolverhampton City Council","http://opendatacommunities.org/id/metropolitan-district-council/wolverhampton","Af Blakemore/Blakemore Foodservice","WCC000214","-92,228.76","Provisions (Resale)","130146658","16/12/2016","Catering","Education Catering - General Overheads","R4102"
"Wolverhampton City Council","http://opendatacommunities.org/id/metropolitan-district-council/wolverhampton","Af Blakemore/Blakemore Foodservice","WCC000214","90,224.04","Provisions (Resale)","130146658","16/12/2016","Catering","Education Catering - General Overheads","R4102"
"Wolverhampton City Council","http://opendatacommunities.org/id/metropolitan-district-council/wolverhampton","Af Blakemore/Blakemore Foodservice","WCC000214","2,004.72","Provisions (Resale)","130146658","16/12/2016","Catering","Education Catering - General Overheads","R4102"
"Wolverhampton City Council","http://opendatacommunities.org/id/metropolitan-district-council/wolverhampton","S P Nugent","00015","135.00","TPP - Maintenance Contractor - General","190293023","09/12/2016","Parking Services","Cycling Schemes - Bikeability","R5720"
"Wolverhampton City Council","http://opendatacommunities.org/id/metropolitan-district-council/wolverhampton","After Adoption","6250","800.00","Services - Professional Fees","130148632","22/12/2016","Looked After Children","RAA - Regional Adoption Agency","R4400"
"Wolverhampton City Council","http://opendatacommunities.org/id/metropolitan-district-council/wolverhampton","After Adoption","6159","8,182.50","Services - Professional Fees","130145898","07/12/2016","Looked After Children","Adoption Support Fund","R4400"
"Wolverhampton City Council","http://opendatacommunities.org/id/metropolitan-district-council/wolverhampton","Aggregate Industries UK Limited","24052001","606.72","Materials","130145862","14/12/2016","Highways Maintenance","Planned Highways Maintenance","R4007"
"Wolverhampton City Council","http://opendatacommunities.org/id/metropolitan-district-council/wolverhampton","Agilisys Limited","1222393","5,425.00","Computing - Purchase of Software","130149886","22/12/2016","Revenues & Benefits","Debt Management","R4531"
"Wolverhampton City Council","http://opendatacommunities.org/id/metropolitan-district-council/wolverhampton","T Bailey","00026","320.00","TPP - Maintenance Contractor - General","190293026","09/12/2016","Parking Services","Cycling Schemes - Bikeability","R5720"
"Wolverhampton City Council","http://opendatacommunities.org/id/metropolitan-district-council/wolverhampton","Aidapt Bathrooms Limited","271571","1,194.00","Equipment - Purchase","130150596","21/12/2016","Independent Living Service","Independent Living Service","R4000"
"Wolverhampton City Council","http://opendatacommunities.org/id/metropolitan-district-council/wolverhampton","Aidapt Bathrooms Limited","267238","1,194.00","Equipment - Purchase","130146314","02/12/2016","Independent Living Service","Independent Living Service","R4000"
"Wolverhampton City Council","http://opendatacommunities.org/id/metropolitan-district-council/wolverhampton","Aidapt Bathrooms Limited","258673","137.50","Equipment - Purchase","130137806","22/12/2016","Independent Living Service","Independent Living Service","R4000"
"Wolverhampton City Council","http://opendatacommunities.org/id/metropolitan-district-council/wolverhampton","Aidservice Limited","92000","298.10","Equipment - Purchase","130150938","22/12/2016","Independent Living Service","Independent Living Service","R4000"
"Wolverhampton City Council","http://opendatacommunities.org/id/metropolitan-district-council/wolverhampton","Aidservice Limited","92003","170.00","Equipment - Purchase","130150939","22/12/2016","Independent Living Service","Independent Living Service","R4000"
"Wolverhampton City Council","http://opendatacommunities.org/id/metropolitan-district-council/wolverhampton","Air Methods Limited","SI001491","588.32","Equipment - R & M","190290803","02/12/2016","Fleet Services","Fleet Management","R4003"
"Wolverhampton City Council","http://opendatacommunities.org/id/metropolitan-district-council/wolverhampton","Air Methods Limited","SI001493","94.87","Equipment - R & M","190290805","02/12/2016","Fleet Services","Fleet Management","R4003"
"Wolverhampton City Council","http://opendatacommunities.org/id/metropolitan-district-council/wolverhampton","Air Methods Limited","SI001373","329.43","R&M - Departmental planned (internal)","130149836","14/12/2016","Facilities Management","Civic Centre","R2000"
"Wolverhampton City Council","http://opendatacommunities.org/id/metropolitan-district-council/wolverhampton","Air Methods Limited","SI001492","145.55","Equipment - R & M","190290804","02/12/2016","Fleet Services","Fleet Management","R4003"
"Wolverhampton City Council","http://opendatacommunities.org/id/metropolitan-district-council/wolverhampton","Air Methods Limited","S1001372","612.04","R&M - Departmental planned (internal)","130149831","14/12/2016","Facilities Management","Civic Centre","R2000"
"Wolverhampton City Council","http://opendatacommunities.org/id/metropolitan-district-council/wolverhampton","Airey Consultancy Service Limited","J07193","1,175.00","Services - Fees and Charges","130148315","07/12/2016","Revenues & Benefits","Revenues","R4401"
"Wolverhampton City Council","http://opendatacommunities.org/id/metropolitan-district-council/wolverhampton","Airport Express West Midlands Limited","1442","1,254.31","Client Transport","130149042","16/12/2016","School Planning & Resources","Secondary- Transport","R3042"
"Wolverhampton City Council","http://opendatacommunities.org/id/metropolitan-district-council/wolverhampton","Airport Express West Midlands Limited","1447","375.00","Client Transport","130150568","21/12/2016","School Planning & Resources","Special - Transport","R3042"
"Wolverhampton City Council","http://opendatacommunities.org/id/metropolitan-district-council/wolverhampton","Airport Express West Midlands Limited","1448","960.00","Client Transport","130150569","22/12/2016","School Planning & Resources","Special - Transport","R3042"
"Wolverhampton City Council","http://opendatacommunities.org/id/metropolitan-district-council/wolverhampton","Airport Express West Midlands Limited","1449","700.08","Client Transport","130150570","22/12/2016","School Planning & Resources","Secondary- Transport","R3042"
"Wolverhampton City Council","http://opendatacommunities.org/id/metropolitan-district-council/wolverhampton","Airport Express West Midlands Limited","1438","1,760.00","Client Transport","130148180","07/12/2016","School Planning & Resources","Special - Transport","R3042"
"Wolverhampton City Council","http://opendatacommunities.org/id/metropolitan-district-council/wolverhampton","Airport Express West Midlands Limited","1437","1,125.00","Client Transport","130148179","07/12/2016","School Planning & Resources","Special - Transport","R3042"
"Wolverhampton City Council","http://opendatacommunities.org/id/metropolitan-district-council/wolverhampton","Airport-Link","BDW047","2,090.00","Client Transport","130151109","21/12/2016","Schools","Pupil Referral Units ISB","R3042"
"Wolverhampton City Council","http://opendatacommunities.org/id/metropolitan-district-council/wolverhampton","Airport-Link","BDW046","2,090.00","Client Transport","130151108","21/12/2016","Schools","Pupil Referral Units ISB","R3042"
"Wolverhampton City Council","http://opendatacommunities.org/id/metropolitan-district-council/wolverhampton","AKW Medi-Care Limited","1427570","342.00","Adaptations","130149701","14/12/2016","Independent Living Service","Independent Living Service","R4411"
"Wolverhampton City Council","http://opendatacommunities.org/id/metropolitan-district-council/wolverhampton","Aldersley Church Early Learning Committee","T42 Aut 16 Inst 2","3,680.10","Grant Payments","190296006","16/12/2016","Early Years","2 Year Olds Pilot - Early Learning & Childcare","R4700"
"Wolverhampton City Council","http://opendatacommunities.org/id/metropolitan-district-council/wolverhampton","Aldersley Church Early Learning Committee","NEF Aut 16 Inst 2","4,066.04","TPP - Private Nursery Education Funding","190296021","16/12/2016","Early Years","Early Years Non Maintained Schools","R5035"
"Wolverhampton City Council","http://opendatacommunities.org/id/metropolitan-district-council/wolverhampton","Aldridge Trimming","24829","130.00","Equipment - Purchase","190290725","02/12/2016","Fleet Services","Fleet Management","R4000"
"Wolverhampton City Council","http://opendatacommunities.org/id/metropolitan-district-council/wolverhampton","Aldridge Trimming","24829","120.00","Equipment - Purchase","190290725","02/12/2016","Fleet Services","Fleet Management","R4000"
"Wolverhampton City Council","http://opendatacommunities.org/id/metropolitan-district-council/wolverhampton","Aldridge Trimming","24964","160.00","Equipment - Purchase","190295821","16/12/2016","Fleet Services","Fleet Management","R4000"
"Wolverhampton City Council","http://opendatacommunities.org/id/metropolitan-district-council/wolverhampton","Alice Whyley Creative Wonderland","HSNov16 : HeadStart Wolverhampton","800.00","Services - Professional Fees","130148689","22/12/2016","Mental Health Commissioning","Headstart Phase 3","R4400"
"Wolverhampton City Council","http://opendatacommunities.org/id/metropolitan-district-council/wolverhampton","Alice Whyley Creative Wonderland","HSSept 16: Headstart Wolverhampton","800.00","Services - Professional Fees","130142926","16/12/2016","Mental Health Commissioning","Headstart Phase 3","R4400"
"Wolverhampton City Council","http://opendatacommunities.org/id/metropolitan-district-council/wolverhampton","Alice Whyley Creative Wonderland","HSSept 16: Headstart Wolverhampton","-800.00","Services - Professional Fees","130142926","16/12/2016","Mental Health Commissioning","Headstart Phase 3","R4400"
"Wolverhampton City Council","http://opendatacommunities.org/id/metropolitan-district-council/wolverhampton","Alice Whyley Creative Wonderland","HSSept 16: Headstart Wolverhampton","800.00","Services - Professional Fees","130142926","16/12/2016","Mental Health Commissioning","Headstart Phase 3","R4400"
"Wolverhampton City Council","http://opendatacommunities.org/id/metropolitan-district-council/wolverhampton","All Saints Action Network Limited","NEF Aut 16 Inst 2","16,288.80","TPP - Private Nursery Education Funding","190296021","16/12/2016","Early Years","Early Years Non Maintained Schools","R5035"
"Wolverhampton City Council","http://opendatacommunities.org/id/metropolitan-district-council/wolverhampton","All Saints Action Network Limited","112003","213.00","Training Expenses","130150268","21/12/2016","Skills","Connexions Contract","R1650"
"Wolverhampton City Council","http://opendatacommunities.org/id/metropolitan-district-council/wolverhampton","All Saints Action Network Limited","T42 Aut 16 Inst 2","13,080.00","Grant Payments","190296006","16/12/2016","Early Years","2 Year Olds Pilot - Early Learning & Childcare","R4700"
"Wolverhampton City Council","http://opendatacommunities.org/id/metropolitan-district-council/wolverhampton","Alliance Disposables Limited","I5472137","27.98","Equipment - Purchase","130148940","09/12/2016","Adult Education","Creative Studies Delivery Area","R4000"
"Wolverhampton City Council","http://opendatacommunities.org/id/metropolitan-district-council/wolverhampton","Alliance Disposables Limited","15449625","105.78","Equipment - Purchase","130148779","09/12/2016","Adult Education","Creative Studies Delivery Area","R4000"
"Wolverhampton City Council","http://opendatacommunities.org/id/metropolitan-district-council/wolverhampton","Alliance Disposables Limited","15472126","150.20","Equipment - Purchase","130148780","09/12/2016","Adult Education","Creative Studies Delivery Area","R4000"
"Wolverhampton City Council","http://opendatacommunities.org/id/metropolitan-district-council/wolverhampton","Alliance Disposables Limited","I5472238","141.07","Equipment - Purchase","130148941","09/12/2016","Adult Education","Creative Studies Delivery Area","R4000"
"Wolverhampton City Council","http://opendatacommunities.org/id/metropolitan-district-council/wolverhampton","Allstar Business Solutions Limited","E2007638793","663.22","Petrol","190294283","14/12/2016","Fleet Services","Fleet Management","R3000"
"Wolverhampton City Council","http://opendatacommunities.org/id/metropolitan-district-council/wolverhampton","Alphatec 2000 Limited","8467","256.82","Equipment - R & M","130149363","22/12/2016","ICTS","Document Centre - General","R4003"
"Wolverhampton City Council","http://opendatacommunities.org/id/metropolitan-district-council/wolverhampton","Andrews Creative Services","AC2016 - 11","600.00","Services - Professional Fees","130149155","21/12/2016","Democratic Services","Mayoral Expenses","R4400"
"Wolverhampton City Council","http://opendatacommunities.org/id/metropolitan-district-council/wolverhampton","Andrews Creative Services","AC2016 - 11","-600.00","Services - Professional Fees","130149155","21/12/2016","Democratic Services","Mayoral Expenses","R4400"
"Wolverhampton City Council","http://opendatacommunities.org/id/metropolitan-district-council/wolverhampton","Andrews Creative Services","AC2016 - 11","600.00","Services - Professional Fees","130149155","21/12/2016","Democratic Services","Mayoral Expenses","R4400"
"Wolverhampton City Council","http://opendatacommunities.org/id/metropolitan-district-council/wolverhampton","Angel Springs Limited","3393633","19.44","Provisions (Not for resale)","130150303","22/12/2016","Operation & Maintenance of Existing Network","Surface Water Management","R4101"
"Wolverhampton City Council","http://opendatacommunities.org/id/metropolitan-district-council/wolverhampton","Angel Springs Limited","3393658","165.00","Provisions (Not for resale)","130150135","22/12/2016","Facilities Management","Civic Centre","R4101"
"Wolverhampton City Council","http://opendatacommunities.org/id/metropolitan-district-council/wolverhampton","Angel Springs Limited","3032090","10.30","Catering","130150905","21/12/2016","Standards and Vulnerable Pupils","Music Support Team","R4100"
"Wolverhampton City Council","http://opendatacommunities.org/id/metropolitan-district-council/wolverhampton","Angel Springs Limited","3292099","10.30","Provisions (Not for resale)","130147635","02/12/2016","Environmental Maintenance","Arbor Scheme","R4101"
"Wolverhampton City Council","http://opendatacommunities.org/id/metropolitan-district-council/wolverhampton","Angel Springs Limited","3393622","19.44","Provisions (Not for resale)","130150297","22/12/2016","Parking Services","Car Parks Operational Staff","R4101"
"Wolverhampton City Council","http://opendatacommunities.org/id/metropolitan-district-council/wolverhampton","Angel Springs Limited","3393626","42.70","Provisions (Not for resale)","130150299","22/12/2016","Customer Services","City Direct 24hr Control Centre","R4101"
"Wolverhampton City Council","http://opendatacommunities.org/id/metropolitan-district-council/wolverhampton","Angel Springs Limited","2853298","10.30","Catering","130151054","21/12/2016","Standards and Vulnerable Pupils","Music Support Team","R4100"
"Wolverhampton City Council","http://opendatacommunities.org/id/metropolitan-district-council/wolverhampton","Angel Springs Limited","3393661","46.52","Provisions (Not for resale)","130150136","22/12/2016","Highways Maintenance","Patching","R4101"
"Wolverhampton City Council","http://opendatacommunities.org/id/metropolitan-district-council/wolverhampton","Angel Springs Limited","3189447","10.30","Catering","130150909","21/12/2016","Standards and Vulnerable Pupils","Music Support Team","R4100"
"Wolverhampton City Council","http://opendatacommunities.org/id/metropolitan-district-council/wolverhampton","Angel Springs Limited","3105542","10.30","Catering","130151055","21/12/2016","Standards and Vulnerable Pupils","Music Support Team","R4100"
"Wolverhampton City Council","http://opendatacommunities.org/id/metropolitan-district-council/wolverhampton","Angel Springs Limited","3393638","40.92","Catering","130150914","22/12/2016","Standards and Vulnerable Pupils","Music Support Team","R4100"
"Wolverhampton City Council","http://opendatacommunities.org/id/metropolitan-district-council/wolverhampton","Angel Springs Limited","3393629","15.64","Provisions (Not for resale)","130150300","22/12/2016","Facilities Management","Victoria Square, Block 11","R4101"
"Wolverhampton City Council","http://opendatacommunities.org/id/metropolitan-district-council/wolverhampton","Angel Springs Limited","3393623","53.00","Provisions (Not for resale)","130150298","22/12/2016","Parking Services","Parking Enforcement","R4101"
"Wolverhampton City Council","http://opendatacommunities.org/id/metropolitan-district-council/wolverhampton","Anglia Dna Services Limited","44544","212.00","Services - Professional Fees","130147119","14/12/2016","Child Protection","Head of Service - CINCP","R4400"
"Wolverhampton City Council","http://opendatacommunities.org/id/metropolitan-district-council/wolverhampton","Ann Arbor Publishers Limited","241047","927.50","Stationery","130147306","21/12/2016","Psychology","Inclusion Support","R4308"
"Wolverhampton City Council","http://opendatacommunities.org/id/metropolitan-district-council/wolverhampton","Ann Arbor Publishers Limited","241047","-927.50","Stationery","130147306","21/12/2016","Psychology","Inclusion Support","R4308"
"Wolverhampton City Council","http://opendatacommunities.org/id/metropolitan-district-council/wolverhampton","Ann Arbor Publishers Limited","241047","105.00","Stationery","130147306","21/12/2016","Psychology","Inclusion Support","R4308"
"Wolverhampton City Council","http://opendatacommunities.org/id/metropolitan-district-council/wolverhampton","Ann Arbor Publishers Limited","241047","822.50","Stationery","130147306","21/12/2016","Psychology","Inclusion Support","R4308"
"Wolverhampton City Council","http://opendatacommunities.org/id/metropolitan-district-council/wolverhampton","Anthony Hammond","753","250.00","Services - Professional Fees","130147129","02/12/2016","Visitor Economy","Northicote Farm","R4400"
"Wolverhampton City Council","http://opendatacommunities.org/id/metropolitan-district-council/wolverhampton","Anthony Hammond","753","-250.00","Services - Professional Fees","130147129","02/12/2016","Visitor Economy","Northicote Farm","R4400"
"Wolverhampton City Council","http://opendatacommunities.org/id/metropolitan-district-council/wolverhampton","Anthony Hammond","753","250.00","Services - Professional Fees","130147129","02/12/2016","Visitor Economy","Northicote Farm","R4400"
"Wolverhampton City Council","http://opendatacommunities.org/id/metropolitan-district-council/wolverhampton","Anthony Hammond","752","260.00","Services - Professional Fees","130147128","02/12/2016","Visitor Economy","Northicote Farm","R4400"
"Wolverhampton City Council","http://opendatacommunities.org/id/metropolitan-district-council/wolverhampton","Anthony Hammond","752","-260.00","Services - Professional Fees","130147128","02/12/2016","Visitor Economy","Northicote Farm","R4400"
"Wolverhampton City Council","http://opendatacommunities.org/id/metropolitan-district-council/wolverhampton","Anthony Hammond","752","260.00","Services - Professional Fees","130147128","02/12/2016","Visitor Economy","Northicote Farm","R4400"
"Wolverhampton City Council","http://opendatacommunities.org/id/metropolitan-district-council/wolverhampton","Apad","WOL 16 - 17","150.00","Subscriptions","130148361","07/12/2016","Safeguarding","Court of Protection, Funerals and Protection of Property","R4701"
"Wolverhampton City Council","http://opendatacommunities.org/id/metropolitan-district-council/wolverhampton","Apcoa Parking (UK) Limited","246744","50,343.77","TPP - Traffic Management","130149079","22/12/2016","Parking Services","Parking Enforcement","R5050"
"Wolverhampton City Council","http://opendatacommunities.org/id/metropolitan-district-council/wolverhampton","Apetito Limited","9001848874","1,023.91","Provisions (Resale)","130144906","07/12/2016","Catering","Meals on Wheels","R4102"
"Wolverhampton City Council","http://opendatacommunities.org/id/metropolitan-district-council/wolverhampton","Apetito Limited","9001854175","1,204.21","Provisions (Resale)","130145906","14/12/2016","Catering","Meals on Wheels","R4102"
"Wolverhampton City Council","http://opendatacommunities.org/id/metropolitan-district-council/wolverhampton","Apetito Limited","9001862548","1,183.63","Provisions (Resale)","130147458","21/12/2016","Catering","Meals on Wheels","R4102"
"Wolverhampton City Council","http://opendatacommunities.org/id/metropolitan-district-council/wolverhampton","Apetito Limited","9001870956","1,030.78","Provisions (Resale)","130149146","22/12/2016","Catering","Meals on Wheels","R4102"
"Wolverhampton City Council","http://opendatacommunities.org/id/metropolitan-district-council/wolverhampton","Apetito Limited","9001859247","1,238.09","Provisions (Resale)","130146937","21/12/2016","Catering","Meals on Wheels","R4102"
"Wolverhampton City Council","http://opendatacommunities.org/id/metropolitan-district-council/wolverhampton","Apetito Limited","9001812178","-10.80","Provisions (Resale)","130150382","21/12/2016","Catering","Meals on Wheels","R4102"
"Wolverhampton City Council","http://opendatacommunities.org/id/metropolitan-district-council/wolverhampton","Apetito Limited","9001874285","1,174.65","Provisions (Resale)","130149786","22/12/2016","Catering","Meals on Wheels","R4102"
"Wolverhampton City Council","http://opendatacommunities.org/id/metropolitan-district-council/wolverhampton","Apetito Limited","9001864710","1,290.11","Provisions (Resale)","130147721","22/12/2016","Catering","Meals on Wheels","R4102"
"Wolverhampton City Council","http://opendatacommunities.org/id/metropolitan-district-council/wolverhampton","Apetito Limited","9001868425","1,703.98","Provisions (Resale)","130148644","22/12/2016","Catering","Meals on Wheels","R4102"
"Wolverhampton City Council","http://opendatacommunities.org/id/metropolitan-district-council/wolverhampton","Apetito Limited","9001874286","92.16","Provisions (Resale)","130149787","22/12/2016","Catering","Meals on Wheels","R4102"
"Wolverhampton City Council","http://opendatacommunities.org/id/metropolitan-district-council/wolverhampton","Apetito Limited","9001857379","1,446.17","Provisions (Resale)","130146557","14/12/2016","Catering","Meals on Wheels","R4102"
"Wolverhampton City Council","http://opendatacommunities.org/id/metropolitan-district-council/wolverhampton","Apetito Limited","9001851827","1,113.35","Provisions (Resale)","130145534","07/12/2016","Catering","Meals on Wheels","R4102"
"Wolverhampton City Council","http://opendatacommunities.org/id/metropolitan-district-council/wolverhampton","Apollo Distribution Solutions","53779","196.45","Services - Professional Fees","130149560","14/12/2016","Bereavement Services","Coroners","R4400"
"Wolverhampton City Council","http://opendatacommunities.org/id/metropolitan-district-council/wolverhampton","Arboricultural Association","6770","289.72","Subscriptions","130147347","16/12/2016","Environmental Maintenance","Arbor Scheme","R4701"
"Wolverhampton City Council","http://opendatacommunities.org/id/metropolitan-district-council/wolverhampton","Arboricultural Association","6770","-289.72","Subscriptions","130147347","16/12/2016","Environmental Maintenance","Arbor Scheme","R4701"
"Wolverhampton City Council","http://opendatacommunities.org/id/metropolitan-district-council/wolverhampton","Arboricultural Association","6770","188.31","Subscriptions","130147347","16/12/2016","Environmental Maintenance","Arbor Scheme","R4701"
"Wolverhampton City Council","http://opendatacommunities.org/id/metropolitan-district-council/wolverhampton","Arboricultural Association","6770","101.41","Subscriptions","130147347","16/12/2016","Environmental Maintenance","Arbor Scheme","R4701"
"Wolverhampton City Council","http://opendatacommunities.org/id/metropolitan-district-council/wolverhampton","Argus Fire Protection Co.Limited","36630","60.00","R&M - Departmental planned (internal)","130149740","16/12/2016","Maintenance Programme","Centralised R&M","R2000"
"Wolverhampton City Council","http://opendatacommunities.org/id/metropolitan-district-council/wolverhampton","Argus Fire Protection Co.Limited","36656","140.00","R&M - Departmental planned (internal)","130149741","16/12/2016","Maintenance Programme","Centralised R&M","R2000"
"Wolverhampton City Council","http://opendatacommunities.org/id/metropolitan-district-council/wolverhampton","Arnold Clark Finance Limited","HI2102380","18.12","Hire of Vehicles","190295868","16/12/2016","Fleet Services","Fleet Management","R3200"
"Wolverhampton City Council","http://opendatacommunities.org/id/metropolitan-district-council/wolverhampton","Arnold Clark Finance Limited","HI2102379","14.55","Hire of Vehicles","190295867","16/12/2016","Fleet Services","Fleet Management","R3200"
"Wolverhampton City Council","http://opendatacommunities.org/id/metropolitan-district-council/wolverhampton","Arnold Clark Finance Limited","HI2102383","18.12","Hire of Vehicles","190295871","16/12/2016","Fleet Services","Fleet Management","R3200"
"Wolverhampton City Council","http://opendatacommunities.org/id/metropolitan-district-council/wolverhampton","Arnold Clark Finance Limited","HI2102382","18.12","Hire of Vehicles","190295870","16/12/2016","Fleet Services","Fleet Management","R3200"
"Wolverhampton City Council","http://opendatacommunities.org/id/metropolitan-district-council/wolverhampton","Arnold Clark Finance Limited","HI2104065","15.15","Hire of Vehicles","190295872","16/12/2016","Fleet Services","Fleet Management","R3200"
"Wolverhampton City Council","http://opendatacommunities.org/id/metropolitan-district-council/wolverhampton","Arnold Clark Finance Limited","HI2102381","15.15","Hire of Vehicles","190295869","16/12/2016","Fleet Services","Fleet Management","R3200"
"Wolverhampton City Council","http://opendatacommunities.org/id/metropolitan-district-council/wolverhampton","Arnold Clark Finance Limited","HI2108581","30.30","Hire of Vehicles","190295876","16/12/2016","Fleet Services","Fleet Management","R3200"
"Wolverhampton City Council","http://opendatacommunities.org/id/metropolitan-district-council/wolverhampton","Arnold Clark Finance Limited","HI2106415","18.12","Hire of Vehicles","190295875","16/12/2016","Fleet Services","Fleet Management","R3200"
"Wolverhampton City Council","http://opendatacommunities.org/id/metropolitan-district-council/wolverhampton","Arnold Clark Finance Limited","HI2105065","18.12","Hire of Vehicles","190295874","16/12/2016","Fleet Services","Fleet Management","R3200"
"Wolverhampton City Council","http://opendatacommunities.org/id/metropolitan-district-council/wolverhampton","Arnold Clark Finance Limited","HI2105064","36.24","Hire of Vehicles","190295873","16/12/2016","Fleet Services","Fleet Management","R3200"
"Wolverhampton City Council","http://opendatacommunities.org/id/metropolitan-district-council/wolverhampton","Arthur Brett (Catering) Limited","ID890466","54.93","Provisions (Resale)","130141492","16/12/2016","Older People Provider Services","Bradley Lodge Resource Centre","R4102"
"Wolverhampton City Council","http://opendatacommunities.org/id/metropolitan-district-council/wolverhampton","Arthur Brett (Catering) Limited","ID903635","7.90","Provisions (Resale)","130148101","07/12/2016","Learning Disability Provider","Duke Street Bungalows","R4102"
"Wolverhampton City Council","http://opendatacommunities.org/id/metropolitan-district-council/wolverhampton","Arthur Brett (Catering) Limited","ID901455","32.32","Provisions (Resale)","130146952","07/12/2016","Older People Provider Services","Bradley Lodge Resource Centre","R4102"
"Wolverhampton City Council","http://opendatacommunities.org/id/metropolitan-district-council/wolverhampton","Arthur Brett (Catering) Limited","CN30725","-45.04","Provisions (Resale)","130148907","14/12/2016","Learning Disability Provider","Duke Street Bungalows","R4102"
"Wolverhampton City Council","http://opendatacommunities.org/id/metropolitan-district-council/wolverhampton","Arthur Brett (Catering) Limited","ID902165","48.73","Provisions (Resale)","130147463","21/12/2016","Older People Provider Services","Bradley Lodge Resource Centre","R4102"
"Wolverhampton City Council","http://opendatacommunities.org/id/metropolitan-district-council/wolverhampton","Arthur Brett (Catering) Limited","ID906672","4.38","Provisions (Resale)","130150390","21/12/2016","Learning Disability Provider","Duke Street Bungalows","R4102"
"Wolverhampton City Council","http://opendatacommunities.org/id/metropolitan-district-council/wolverhampton","Arthur Brett (Catering) Limited","ID892755","21.04","Provisions (Resale)","130150719","22/12/2016","Older People Provider Services","Blakenhall Resource Centre","R4102"
"Wolverhampton City Council","http://opendatacommunities.org/id/metropolitan-district-council/wolverhampton","Arthur Brett (Catering) Limited","ID904666","93.05","Provisions (Resale)","130148291","09/12/2016","Visitor Economy","Art Gallery Tea Room","R4102"
"Wolverhampton City Council","http://opendatacommunities.org/id/metropolitan-district-council/wolverhampton","Arthur Brett (Catering) Limited","ID897849","41.45","Provisions (Resale)","130145935","07/12/2016","Older People Provider Services","Bradley Lodge Resource Centre","R4102"
"Wolverhampton City Council","http://opendatacommunities.org/id/metropolitan-district-council/wolverhampton","Arthur Brett (Catering) Limited","ID902781","16.90","Provisions (Resale)","130147389","07/12/2016","Older People Provider Services","Ekta Day Centre","R4102"
"Wolverhampton City Council","http://opendatacommunities.org/id/metropolitan-district-council/wolverhampton","Arthur Brett (Catering) Limited","ID905800","7.66","Provisions (Resale)","130149406","14/12/2016","Learning Disability Provider","Duke Street Bungalows","R4102"
"Wolverhampton City Council","http://opendatacommunities.org/id/metropolitan-district-council/wolverhampton","Arthur Brett (Catering) Limited","ID905409","50.48","Provisions (Resale)","130149179","21/12/2016","Older People Provider Services","Bradley Lodge Resource Centre","R4102"
"Wolverhampton City Council","http://opendatacommunities.org/id/metropolitan-district-council/wolverhampton","Arthur Brett (Catering) Limited","ID906675","14.60","Provisions (Resale)","130150391","21/12/2016","Learning Disability Provider","Duke Street Bungalows","R4102"
"Wolverhampton City Council","http://opendatacommunities.org/id/metropolitan-district-council/wolverhampton","Arthur Brett (Catering) Limited","ID904858","18.99","Provisions (Resale)","130148292","07/12/2016","Older People Provider Services","Blakenhall Resource Centre","R4102"
"Wolverhampton City Council","http://opendatacommunities.org/id/metropolitan-district-council/wolverhampton","Arthur Brett (Catering) Limited","ID900033","38.21","Provisions (Resale)","130146588","07/12/2016","Older People Provider Services","Bradley Lodge Resource Centre","R4102"
"Wolverhampton City Council","http://opendatacommunities.org/id/metropolitan-district-council/wolverhampton","Arthur Brett (Catering) Limited","ID901984","8.58","Provisions (Resale)","130146953","14/12/2016","Leisure Services","WV Active Catering","R4102"
"Wolverhampton City Council","http://opendatacommunities.org/id/metropolitan-district-council/wolverhampton","Arthur Brett (Catering) Limited","ID903722","19.40","Provisions (Resale)","130148697","14/12/2016","Learning Disability Provider","Duke Street Bungalows","R4102"
"Wolverhampton City Council","http://opendatacommunities.org/id/metropolitan-district-council/wolverhampton","Arthur Brett (Catering) Limited","ID903328","50.04","Provisions (Resale)","130147812","21/12/2016","Older People Provider Services","Bradley Lodge Resource Centre","R4102"
"Wolverhampton City Council","http://opendatacommunities.org/id/metropolitan-district-council/wolverhampton","Arthur Brett (Catering) Limited","ID845069","11.80","Provisions (Resale)","130150715","21/12/2016","Visitor Economy","Bantock - Tea Rooms","R4102"
"Wolverhampton City Council","http://opendatacommunities.org/id/metropolitan-district-council/wolverhampton","Arthur Brett (Catering) Limited","ID907175","31.36","Provisions (Resale)","130149630","16/12/2016","Older People Provider Services","Blakenhall Resource Centre","R4102"
"Wolverhampton City Council","http://opendatacommunities.org/id/metropolitan-district-council/wolverhampton","Arthur Brett (Catering) Limited","ID906078","97.07","Provisions (Resale)","130149180","14/12/2016","Visitor Economy","Art Gallery Tea Room","R4102"
"Wolverhampton City Council","http://opendatacommunities.org/id/metropolitan-district-council/wolverhampton","Arthur Brett (Catering) Limited","ID894101","17.59","Provisions (Resale)","130142781","07/12/2016","Older People Provider Services","Ekta Day Centre","R4102"
"Wolverhampton City Council","http://opendatacommunities.org/id/metropolitan-district-council/wolverhampton","Arthur Brett (Catering) Limited","ID903752","45.27","Provisions (Resale)","130148698","21/12/2016","Older People Provider Services","Bradley Lodge Resource Centre","R4102"
"Wolverhampton City Council","http://opendatacommunities.org/id/metropolitan-district-council/wolverhampton","Arthur Brett (Catering) Limited","ID844532","34.46","Provisions (Resale)","130150713","21/12/2016","Older People Provider Services","Ekta Day Centre","R4102"
"Wolverhampton City Council","http://opendatacommunities.org/id/metropolitan-district-council/wolverhampton","Arthur Brett (Catering) Limited","ID902063","8.04","Provisions (Resale)","130147461","07/12/2016","Learning Disability Provider","Duke Street Bungalows","R4102"
"Wolverhampton City Council","http://opendatacommunities.org/id/metropolitan-district-council/wolverhampton","Arthur Brett (Catering) Limited","ID902064","25.03","Provisions (Resale)","130147462","07/12/2016","Learning Disability Provider","Duke Street Bungalows","R4102"
"Wolverhampton City Council","http://opendatacommunities.org/id/metropolitan-district-council/wolverhampton","Arthur Brett (Catering) Limited","ID904209","14.58","Provisions (Resale)","130148103","14/12/2016","Leisure Services","WV Active Catering","R4102"
"Wolverhampton City Council","http://opendatacommunities.org/id/metropolitan-district-council/wolverhampton","Arthur Brett (Catering) Limited","ID907942","99.25","Provisions (Resale)","130150204","21/12/2016","Visitor Economy","Art Gallery Tea Room","R4102"
"Wolverhampton City Council","http://opendatacommunities.org/id/metropolitan-district-council/wolverhampton","Arthur Brett (Catering) Limited","ID902738","56.19","Provisions (Resale)","130147388","02/12/2016","Visitor Economy","Bantock - Tea Rooms","R4102"
"Wolverhampton City Council","http://opendatacommunities.org/id/metropolitan-district-council/wolverhampton","Arthur Brett (Catering) Limited","ID904917","116.85","Provisions (Resale)","130148293","09/12/2016","Visitor Economy","Bantock - Tea Rooms","R4102"
"Wolverhampton City Council","http://opendatacommunities.org/id/metropolitan-district-council/wolverhampton","Arthur Brett (Catering) Limited","ID902389","28.49","Provisions (Resale)","130147387","07/12/2016","Older People Provider Services","Blakenhall Resource Centre","R4102"
"Wolverhampton City Council","http://opendatacommunities.org/id/metropolitan-district-council/wolverhampton","Arthur Brett (Catering) Limited","ID906445","7.30","Provisions (Resale)","130149818","21/12/2016","Learning Disability Provider","Duke Street Bungalows","R4102"
"Wolverhampton City Council","http://opendatacommunities.org/id/metropolitan-district-council/wolverhampton","Arthur Brett (Catering) Limited","ID906629","48.74","Provisions (Resale)","130150203","21/12/2016","Older People Provider Services","Bradley Lodge Resource Centre","R4102"
"Wolverhampton City Council","http://opendatacommunities.org/id/metropolitan-district-council/wolverhampton","Arthur Brett (Catering) Limited","ID903714","60.70","Provisions (Resale)","130148696","14/12/2016","Learning Disability Provider","Duke Street Bungalows","R4102"
"Wolverhampton City Council","http://opendatacommunities.org/id/metropolitan-district-council/wolverhampton","Arthur Brett (Catering) Limited","ID903553","77.76","Provisions (Resale)","130147552","14/12/2016","Visitor Economy","Art Gallery Tea Room","R4102"
"Wolverhampton City Council","http://opendatacommunities.org/id/metropolitan-district-council/wolverhampton","Arthur Brett (Catering) Limited","ID903355","13.74","Provisions (Resale)","130147464","07/12/2016","Leisure Services","WV Active Catering","R4102"
"Wolverhampton City Council","http://opendatacommunities.org/id/metropolitan-district-council/wolverhampton","Arthur Brett (Catering) Limited","ID906437","41.49","Provisions (Resale)","130149816","21/12/2016","Older People Provider Services","Bradley Lodge Resource Centre","R4102"
"Wolverhampton City Council","http://opendatacommunities.org/id/metropolitan-district-council/wolverhampton","Arthur Brett (Catering) Limited","ID906662","32.73","Provisions (Resale)","130150389","21/12/2016","Learning Disability Provider","Duke Street Bungalows","R4102"
"Wolverhampton City Council","http://opendatacommunities.org/id/metropolitan-district-council/wolverhampton","Arthur Brett (Catering) Limited","ID905713","28.27","Provisions (Resale)","130149405","14/12/2016","Learning Disability Provider","Duke Street Bungalows","R4102"
"Wolverhampton City Council","http://opendatacommunities.org/id/metropolitan-district-council/wolverhampton","Arthur Brett (Catering) Limited","ID905802","5.22","Provisions (Resale)","130149407","14/12/2016","Learning Disability Provider","Duke Street Bungalows","R4102"
"Wolverhampton City Council","http://opendatacommunities.org/id/metropolitan-district-council/wolverhampton","Arthur Brett (Catering) Limited","ID904196","38.70","Provisions (Resale)","130148102","09/12/2016","Visitor Economy","Bantock - Tea Rooms","R4102"
"Wolverhampton City Council","http://opendatacommunities.org/id/metropolitan-district-council/wolverhampton","Arthur Brett (Catering) Limited","ID897740","42.30","Provisions (Resale)","130145566","07/12/2016","Older People Provider Services","Bradley Lodge Resource Centre","R4102"
"Wolverhampton City Council","http://opendatacommunities.org/id/metropolitan-district-council/wolverhampton","Arthur Brett (Catering) Limited","ID902062","13.92","Provisions (Resale)","130147460","07/12/2016","Learning Disability Provider","Duke Street Bungalows","R4102"
"Wolverhampton City Council","http://opendatacommunities.org/id/metropolitan-district-council/wolverhampton","Arthur Brett (Catering) Limited","ID903914","10.38","Provisions (Resale)","130147813","14/12/2016","Visitor Economy","Art Gallery Tea Room","R4102"
"Wolverhampton City Council","http://opendatacommunities.org/id/metropolitan-district-council/wolverhampton","Arthur Brett (Catering) Limited","ID906443","8.47","Provisions (Resale)","130149817","21/12/2016","Learning Disability Provider","Duke Street Bungalows","R4102"
"Wolverhampton City Council","http://opendatacommunities.org/id/metropolitan-district-council/wolverhampton","Arthur Brett (Catering) Limited","ID907478","101.79","Provisions (Resale)","130149819","21/12/2016","Visitor Economy","Art Gallery Tea Room","R4102"
"Wolverhampton City Council","http://opendatacommunities.org/id/metropolitan-district-council/wolverhampton","Arthur M Griffiths & Son Limited","IN17252","99,717.35","Construction and Conversion","130150725","21/12/2016","-","Primary Expansion Programme","C1100"
"Wolverhampton City Council","http://opendatacommunities.org/id/metropolitan-district-council/wolverhampton","Asan Management Services Limited","102919","100.00","Room Hire","130148558","07/12/2016","Human Resources","Workforce Development","R2201"
"Wolverhampton City Council","http://opendatacommunities.org/id/metropolitan-district-council/wolverhampton","Asan Management Services Limited","102919","45.00","Catering","130148558","07/12/2016","Human Resources","Workforce Development","R4100"
"Wolverhampton City Council","http://opendatacommunities.org/id/metropolitan-district-council/wolverhampton","Asan Management Services Limited","102919","15.00","Training Expenses","130148558","07/12/2016","Human Resources","Workforce Development","R1650"
"Wolverhampton City Council","http://opendatacommunities.org/id/metropolitan-district-council/wolverhampton","Ash Rubber Stamp Co.Limited.","400987826","18.38","Stationery","130148246","07/12/2016","Director of Governance","Director of Governance","R4308"
"Wolverhampton City Council","http://opendatacommunities.org/id/metropolitan-district-council/wolverhampton","Ashdown Supplies","14234","166.00","Materials","130147967","07/12/2016","Bereavement Services","Cemeteries","R4007"
"Wolverhampton City Council","http://opendatacommunities.org/id/metropolitan-district-council/wolverhampton","Ashmore Park Community Association","2016007","198.00","Room Hire","130147088","07/12/2016","Community Safety","SWP - Locations","R2201"
"Wolverhampton City Council","http://opendatacommunities.org/id/metropolitan-district-council/wolverhampton","Askews & Holts Library Services Limited","5232658","302.29","Books","130147670","21/12/2016","Library Services","Global Budgets","R4309"
"Wolverhampton City Council","http://opendatacommunities.org/id/metropolitan-district-council/wolverhampton","Askews & Holts Library Services Limited","5246342","181.16","Books","130149928","22/12/2016","Library Services","Global Budgets","R4309"
"Wolverhampton City Council","http://opendatacommunities.org/id/metropolitan-district-council/wolverhampton","Askews & Holts Library Services Limited","5231749","54.53","Books","130147668","21/12/2016","Library Services","Global Budgets","R4309"
"Wolverhampton City Council","http://opendatacommunities.org/id/metropolitan-district-council/wolverhampton","Askews & Holts Library Services Limited","5212950","501.62","Books","130145031","02/12/2016","Library Services","Global Budgets","R4309"
"Wolverhampton City Council","http://opendatacommunities.org/id/metropolitan-district-council/wolverhampton","Askews & Holts Library Services Limited","5248006","175.98","Books","130150318","22/12/2016","Library Services","Global Budgets","R4309"
"Wolverhampton City Council","http://opendatacommunities.org/id/metropolitan-district-council/wolverhampton","Askews & Holts Library Services Limited","5239766","163.24","Books","130148846","09/12/2016","Library Services","Global Budgets","R4309"
"Wolverhampton City Council","http://opendatacommunities.org/id/metropolitan-district-council/wolverhampton","Askews & Holts Library Services Limited","5218002","315.55","Books","130145518","07/12/2016","Library Services","Global Budgets","R4309"
"Wolverhampton City Council","http://opendatacommunities.org/id/metropolitan-district-council/wolverhampton","Askews & Holts Library Services Limited","5218002","-315.55","Books","130145518","07/12/2016","Library Services","Global Budgets","R4309"
"Wolverhampton City Council","http://opendatacommunities.org/id/metropolitan-district-council/wolverhampton","Askews & Holts Library Services Limited","5218002","305.89","Books","130145518","07/12/2016","Library Services","Global Budgets","R4309"
"Wolverhampton City Council","http://opendatacommunities.org/id/metropolitan-district-council/wolverhampton","Askews & Holts Library Services Limited","5218002","9.66","Books","130145518","07/12/2016","Library Services","Global Budgets","R4309"
"Wolverhampton City Council","http://opendatacommunities.org/id/metropolitan-district-council/wolverhampton","Askews & Holts Library Services Limited","5237901","295.36","Books","130148844","22/12/2016","Library Services","Global Budgets","R4309"
"Wolverhampton City Council","http://opendatacommunities.org/id/metropolitan-district-council/wolverhampton","Askews & Holts Library Services Limited","5231748","31.31","Books","130147667","21/12/2016","Library Services","Global Budgets","R4309"
"Wolverhampton City Council","http://opendatacommunities.org/id/metropolitan-district-council/wolverhampton","Askews & Holts Library Services Limited","5225435","405.02","Books","130146542","14/12/2016","Library Services","Global Budgets","R4309"
"Wolverhampton City Council","http://opendatacommunities.org/id/metropolitan-district-council/wolverhampton","Askews & Holts Library Services Limited","5239134","190.57","Books","130148845","22/12/2016","Library Services","Global Budgets","R4309"
"Wolverhampton City Council","http://opendatacommunities.org/id/metropolitan-district-council/wolverhampton","Askews & Holts Library Services Limited","5220364","290.37","Books","130146112","09/12/2016","Library Services","Global Budgets","R4309"
"Wolverhampton City Council","http://opendatacommunities.org/id/metropolitan-district-council/wolverhampton","Askews & Holts Library Services Limited","5216392","14.36","Books","130145718","07/12/2016","Library Services","Global Budgets","R4309"
"Wolverhampton City Council","http://opendatacommunities.org/id/metropolitan-district-council/wolverhampton","Askews & Holts Library Services Limited","5226991","521.35","Books","130147124","16/12/2016","Library Services","Global Budgets","R4309"
"Wolverhampton City Council","http://opendatacommunities.org/id/metropolitan-district-council/wolverhampton","Askews & Holts Library Services Limited","5212949","17.50","Books","130145030","02/12/2016","Library Services","Global Budgets","R4309"
"Wolverhampton City Council","http://opendatacommunities.org/id/metropolitan-district-council/wolverhampton","Askews & Holts Library Services Limited","5248007","19.05","Books","130150319","22/12/2016","Library Services","Global Budgets","R4309"
"Wolverhampton City Council","http://opendatacommunities.org/id/metropolitan-district-council/wolverhampton","Askews & Holts Library Services Limited","5241318","671.44","Books","130149114","22/12/2016","Library Services","Global Budgets","R4309"
"Wolverhampton City Council","http://opendatacommunities.org/id/metropolitan-district-council/wolverhampton","Askews & Holts Library Services Limited","5231750","113.70","Books","130147669","21/12/2016","Library Services","Global Budgets","R4309"
"Wolverhampton City Council","http://opendatacommunities.org/id/metropolitan-district-council/wolverhampton","Askews & Holts Library Services Limited","5212951","394.32","Books","130145032","02/12/2016","Library Services","Global Budgets","R4309"
"Wolverhampton City Council","http://opendatacommunities.org/id/metropolitan-district-council/wolverhampton","Askews & Holts Library Services Limited","5218001","5.95","Books","130145517","07/12/2016","Library Services","Global Budgets","R4309"
"Wolverhampton City Council","http://opendatacommunities.org/id/metropolitan-district-council/wolverhampton","Askews & Holts Library Services Limited","5246343","76.90","Books","130149929","22/12/2016","Library Services","Global Budgets","R4309"
"Wolverhampton City Council","http://opendatacommunities.org/id/metropolitan-district-council/wolverhampton","Askews & Holts Library Services Limited","5213006","448.16","Books","130145033","02/12/2016","Library Services","Global Budgets","R4309"
"Wolverhampton City Council","http://opendatacommunities.org/id/metropolitan-district-council/wolverhampton","Askews & Holts Library Services Limited","5220365","100.30","Books","130146113","09/12/2016","Library Services","Global Budgets","R4309"
"Wolverhampton City Council","http://opendatacommunities.org/id/metropolitan-district-council/wolverhampton","Askews & Holts Library Services Limited","5237900","146.61","Books","130148843","22/12/2016","Library Services","Global Budgets","R4309"
"Wolverhampton City Council","http://opendatacommunities.org/id/metropolitan-district-council/wolverhampton","Askews & Holts Library Services Limited","5217772","22.15","Books","130145516","07/12/2016","Library Services","Global Budgets","R4309"
"Wolverhampton City Council","http://opendatacommunities.org/id/metropolitan-district-council/wolverhampton","Askews & Holts Library Services Limited","5217772","-22.15","Books","130145516","07/12/2016","Library Services","Global Budgets","R4309"
"Wolverhampton City Council","http://opendatacommunities.org/id/metropolitan-district-council/wolverhampton","Askews & Holts Library Services Limited","5217772","22.15","Books","130145516","07/12/2016","Library Services","Global Budgets","R4309"
"Wolverhampton City Council","http://opendatacommunities.org/id/metropolitan-district-council/wolverhampton","Aspire People Limited","126263","89.00","Agency Staff","130150786","21/12/2016","Schools","Coppice Community High School","R1100"
"Wolverhampton City Council","http://opendatacommunities.org/id/metropolitan-district-council/wolverhampton","Aspire People Limited","126263","59.32","Agency Staff","130150786","21/12/2016","Schools","Coppice Community High School","R1100"
"Wolverhampton City Council","http://opendatacommunities.org/id/metropolitan-district-council/wolverhampton","Assn Of Electoral Administrators","20298","609.00","Staff Advertising Costs","130145015","07/12/2016","Democratic Services","Electoral Registration","R1700"
"Wolverhampton City Council","http://opendatacommunities.org/id/metropolitan-district-council/wolverhampton","Associated  Radio Taxi�s","03039","1,045.00","Client Transport","130149872","14/12/2016","School Planning & Resources","Secondary- Transport","R3042"
"Wolverhampton City Council","http://opendatacommunities.org/id/metropolitan-district-council/wolverhampton","Associated  Radio Taxi�s","02191","75.40","Public Transport","130146449","14/12/2016","Learning Disability Provider","Ernest Bold Court","R3300"
"Wolverhampton City Council","http://opendatacommunities.org/id/metropolitan-district-council/wolverhampton","Associated  Radio Taxi�s","03035","185.64","Client Transport","130149868","21/12/2016","School Planning & Resources","Special - Transport","R3042"
"Wolverhampton City Council","http://opendatacommunities.org/id/metropolitan-district-council/wolverhampton","Associated  Radio Taxi�s","03035","-185.64","Client Transport","130149868","21/12/2016","School Planning & Resources","Special - Transport","R3042"
"Wolverhampton City Council","http://opendatacommunities.org/id/metropolitan-district-council/wolverhampton","Associated  Radio Taxi�s","03035","185.64","Client Transport","130149868","21/12/2016","School Planning & Resources","Special - Transport","R3042"
"Wolverhampton City Council","http://opendatacommunities.org/id/metropolitan-district-council/wolverhampton","Associated  Radio Taxi�s","03036","884.00","Client Transport","130149869","14/12/2016","School Planning & Resources","Special - Transport","R3042"
"Wolverhampton City Council","http://opendatacommunities.org/id/metropolitan-district-council/wolverhampton","Associated  Radio Taxi�s","03036","-884.00","Client Transport","130149869","14/12/2016","School Planning & Resources","Special - Transport","R3042"
"Wolverhampton City Council","http://opendatacommunities.org/id/metropolitan-district-council/wolverhampton","Associated  Radio Taxi�s","03036","884.00","Client Transport","130149869","14/12/2016","School Planning & Resources","Special - Transport","R3042"
"Wolverhampton City Council","http://opendatacommunities.org/id/metropolitan-district-council/wolverhampton","Associated  Radio Taxi�s","03034","1,104.60","Client Transport","130149867","14/12/2016","School Planning & Resources","Special - Transport","R3042"
"Wolverhampton City Council","http://opendatacommunities.org/id/metropolitan-district-council/wolverhampton","Associated  Radio Taxi�s","03032","1,469.38","Client Transport","130149865","21/12/2016","School Planning & Resources","Primary - Transport","R3042"
"Wolverhampton City Council","http://opendatacommunities.org/id/metropolitan-district-council/wolverhampton","Associated  Radio Taxi�s","03032","-1,469.38","Client Transport","130149865","21/12/2016","School Planning & Resources","Primary - Transport","R3042"
"Wolverhampton City Council","http://opendatacommunities.org/id/metropolitan-district-council/wolverhampton","Associated  Radio Taxi�s","03032","1,469.38","Client Transport","130149865","21/12/2016","School Planning & Resources","Primary - Transport","R3042"
"Wolverhampton City Council","http://opendatacommunities.org/id/metropolitan-district-council/wolverhampton","Associated  Radio Taxi�s","03038","1,215.72","Client Transport","130149871","14/12/2016","School Planning & Resources","Secondary- Transport","R3042"
"Wolverhampton City Council","http://opendatacommunities.org/id/metropolitan-district-council/wolverhampton","Associated  Radio Taxi�s","03031","1,387.76","Client Transport","130149864","14/12/2016","School Planning & Resources","Secondary- Transport","R3042"
"Wolverhampton City Council","http://opendatacommunities.org/id/metropolitan-district-council/wolverhampton","Associated  Radio Taxi�s","02223","16.50","Client Transport","130151176","22/12/2016","Early Intervention","EIP Locality 2","R3042"
"Wolverhampton City Council","http://opendatacommunities.org/id/metropolitan-district-council/wolverhampton","Associated  Radio Taxi�s","03042","206.50","Client Transport","130149873","21/12/2016","School Planning & Resources","Secondary- Transport","R3042"
"Wolverhampton City Council","http://opendatacommunities.org/id/metropolitan-district-council/wolverhampton","Associated  Radio Taxi�s","03042","206.50","Client Transport","130149873","21/12/2016","School Planning & Resources","Secondary- Transport","R3042"
"Wolverhampton City Council","http://opendatacommunities.org/id/metropolitan-district-council/wolverhampton","Associated  Radio Taxi�s","03042","-206.50","Client Transport","130149873","21/12/2016","School Planning & Resources","Secondary- Transport","R3042"
"Wolverhampton City Council","http://opendatacommunities.org/id/metropolitan-district-council/wolverhampton","Associated  Radio Taxi�s","03033","1,179.64","Client Transport","130149866","14/12/2016","School Planning & Resources","Primary - Transport","R3042"
"Wolverhampton City Council","http://opendatacommunities.org/id/metropolitan-district-council/wolverhampton","Associated  Radio Taxi�s","03033","-1,179.64","Client Transport","130149866","14/12/2016","School Planning & Resources","Primary - Transport","R3042"
"Wolverhampton City Council","http://opendatacommunities.org/id/metropolitan-district-council/wolverhampton","Associated  Radio Taxi�s","03033","1,179.64","Client Transport","130149866","14/12/2016","School Planning & Resources","Primary - Transport","R3042"
"Wolverhampton City Council","http://opendatacommunities.org/id/metropolitan-district-council/wolverhampton","Association Of Adult Education And","0363","120.00","Training Expenses","130148422","22/12/2016","Adult Education","Staff Development","R1650"
"Wolverhampton City Council","http://opendatacommunities.org/id/metropolitan-district-council/wolverhampton","Pelican Rouge Coffee Solutions Limited","160077417 160034248","-25.36","Provisions (Resale)","130147971","21/12/2016","Catering","Civic Centre Catering","R4102"
"Wolverhampton City Council","http://opendatacommunities.org/id/metropolitan-district-council/wolverhampton","Pelican Rouge Coffee Solutions Limited","160077417 160034248","25.36","Provisions (Resale)","130147971","21/12/2016","Catering","Civic Centre Catering","R4102"
"Wolverhampton City Council","http://opendatacommunities.org/id/metropolitan-district-council/wolverhampton","Pelican Rouge Coffee Solutions Limited","160077417 160034248","-25.36","Provisions (Resale)","130147971","21/12/2016","Catering","Civic Centre Catering","R4102"
"Wolverhampton City Council","http://opendatacommunities.org/id/metropolitan-district-council/wolverhampton","Pelican Rouge Coffee Solutions Limited","160077414","-109.27","Provisions (Resale)","130147969","21/12/2016","Catering","Civic Centre Catering","R4102"
"Wolverhampton City Council","http://opendatacommunities.org/id/metropolitan-district-council/wolverhampton","Pelican Rouge Coffee Solutions Limited","160077414","109.27","Provisions (Resale)","130147969","21/12/2016","Catering","Civic Centre Catering","R4102"
"Wolverhampton City Council","http://opendatacommunities.org/id/metropolitan-district-council/wolverhampton","Pelican Rouge Coffee Solutions Limited","160077414","-109.27","Provisions (Resale)","130147969","21/12/2016","Catering","Civic Centre Catering","R4102"
"Wolverhampton City Council","http://opendatacommunities.org/id/metropolitan-district-council/wolverhampton","Pelican Rouge Coffee Solutions Limited","160102394","379.21","Provisions (Resale)","130147291","07/12/2016","Catering","Civic Centre Catering","R4102"
"Wolverhampton City Council","http://opendatacommunities.org/id/metropolitan-district-council/wolverhampton","Pelican Rouge Coffee Solutions Limited","160102394","-379.21","Provisions (Resale)","130147291","07/12/2016","Catering","Civic Centre Catering","R4102"
"Wolverhampton City Council","http://opendatacommunities.org/id/metropolitan-district-council/wolverhampton","Pelican Rouge Coffee Solutions Limited","160102394","379.21","Provisions (Resale)","130147291","07/12/2016","Catering","Civic Centre Catering","R4102"
"Wolverhampton City Council","http://opendatacommunities.org/id/metropolitan-district-council/wolverhampton","Pelican Rouge Coffee Solutions Limited","160077418","-201.40","Provisions (Resale)","130147972","21/12/2016","Catering","Civic Centre Catering","R4102"
"Wolverhampton City Council","http://opendatacommunities.org/id/metropolitan-district-council/wolverhampton","Pelican Rouge Coffee Solutions Limited","160077418","201.40","Provisions (Resale)","130147972","21/12/2016","Catering","Civic Centre Catering","R4102"
"Wolverhampton City Council","http://opendatacommunities.org/id/metropolitan-district-council/wolverhampton","Pelican Rouge Coffee Solutions Limited","160077418","-201.40","Provisions (Resale)","130147972","21/12/2016","Catering","Civic Centre Catering","R4102"
"Wolverhampton City Council","http://opendatacommunities.org/id/metropolitan-district-council/wolverhampton","Pelican Rouge Coffee Solutions Limited","160102561","4,009.00","Equipment - R & M","130149276","21/12/2016","Catering","Civic Centre Catering","R4003"
"Wolverhampton City Council","http://opendatacommunities.org/id/metropolitan-district-council/wolverhampton","Pelican Rouge Coffee Solutions Limited","160077416","-140.64","Provisions (Resale)","130147970","21/12/2016","Catering","Civic Centre Catering","R4102"
"Wolverhampton City Council","http://opendatacommunities.org/id/metropolitan-district-council/wolverhampton","Pelican Rouge Coffee Solutions Limited","160077416","140.64","Provisions (Resale)","130147970","21/12/2016","Catering","Civic Centre Catering","R4102"
"Wolverhampton City Council","http://opendatacommunities.org/id/metropolitan-district-council/wolverhampton","Pelican Rouge Coffee Solutions Limited","160077416","-140.64","Provisions (Resale)","130147970","21/12/2016","Catering","Civic Centre Catering","R4102"
"Wolverhampton City Council","http://opendatacommunities.org/id/metropolitan-district-council/wolverhampton","Avery Weigh-Tronix","CNN/10421580","1,266.19","Equipment - R & M","130149163","14/12/2016","Highways Maintenance","Highway & Land Drainage","R4003"
"Wolverhampton City Council","http://opendatacommunities.org/id/metropolitan-district-council/wolverhampton","Axiom Building Solutions","03310","2,250.00","R&M - Departmental planned (external)","130149435","22/12/2016","Corporate Asset Management","Statutory Surveys","R2001"
"Wolverhampton City Council","http://opendatacommunities.org/id/metropolitan-district-council/wolverhampton","Axiom Building Solutions","03155","2,815.00","Construction and Conversion","130145799","09/12/2016","-","Capital Maintenance - Heating Pipework Upgrades","C1100"
"Wolverhampton City Council","http://opendatacommunities.org/id/metropolitan-district-council/wolverhampton","Badenoch & Clark Recruit. Specialist","BL3667/00","2,100.00","Agency Staff","130147525","02/12/2016","Strategic Finance","Strategic Finance","R1100"
"Wolverhampton City Council","http://opendatacommunities.org/id/metropolitan-district-council/wolverhampton","Badenoch & Clark Recruit. Specialist","BN3073/00","3,275.00","Agency Staff","130148902","14/12/2016","Service Director Older People","Service Director Older People","R1100"
"Wolverhampton City Council","http://opendatacommunities.org/id/metropolitan-district-council/wolverhampton","Badenoch & Clark Recruit. Specialist","BP4429/00","1,575.00","Agency Staff","130149610","14/12/2016","ICTS","Digital Transformation Programme","R1100"
"Wolverhampton City Council","http://opendatacommunities.org/id/metropolitan-district-council/wolverhampton","Badenoch & Clark Recruit. Specialist","BR0170/00","3,012.05","Agency Staff","130150956","22/12/2016","Strategic Finance","Strategic Finance","R1100"
"Wolverhampton City Council","http://opendatacommunities.org/id/metropolitan-district-council/wolverhampton","Badenoch & Clark Recruit. Specialist","BM9261/00","2,100.00","Agency Staff","130148666","07/12/2016","Strategic Finance","Strategic Finance","R1100"
"Wolverhampton City Council","http://opendatacommunities.org/id/metropolitan-district-council/wolverhampton","Badenoch & Clark Recruit. Specialist","BP4841/00","1,741.16","Agency Staff","130149798","14/12/2016","Strategic Finance","Strategic Finance","R1100"
"Wolverhampton City Council","http://opendatacommunities.org/id/metropolitan-district-council/wolverhampton","Badenoch & Clark Recruit. Specialist","BP5669/00","3,012.05","Agency Staff","130149801","14/12/2016","Strategic Finance","Strategic Finance","R1100"
"Wolverhampton City Council","http://opendatacommunities.org/id/metropolitan-district-council/wolverhampton","Badenoch & Clark Recruit. Specialist","BR0749/00","2,100.00","Agency Staff","130150958","22/12/2016","Strategic Finance","Strategic Finance","R1100"
"Wolverhampton City Council","http://opendatacommunities.org/id/metropolitan-district-council/wolverhampton","Badenoch & Clark Recruit. Specialist","BL6660/0Q","2,176.45","Agency Staff","130148280","07/12/2016","Strategic Finance","Strategic Finance","R1100"
"Wolverhampton City Council","http://opendatacommunities.org/id/metropolitan-district-council/wolverhampton","Badenoch & Clark Recruit. Specialist","BK0420/00","2,175.00","Agency Staff","130149797","14/12/2016","Older People Commissioning","Head of Strategic Commissioning � People","R1100"
"Wolverhampton City Council","http://opendatacommunities.org/id/metropolitan-district-council/wolverhampton","Badenoch & Clark Recruit. Specialist","BN2902/00","1,750.00","Agency Staff","130148895","16/12/2016","ICTS","Digital Transformation Programme","R1100"
"Wolverhampton City Council","http://opendatacommunities.org/id/metropolitan-district-council/wolverhampton","Badenoch & Clark Recruit. Specialist","BN2951/00","2,176.45","Agency Staff","130148898","14/12/2016","Strategic Finance","Strategic Finance","R1100"
"Wolverhampton City Council","http://opendatacommunities.org/id/metropolitan-district-council/wolverhampton","Badenoch & Clark Recruit. Specialist","BP5353/00","3,275.00","Agency Staff","130149799","14/12/2016","Service Director Older People","Service Director Older People","R1100"
"Wolverhampton City Council","http://opendatacommunities.org/id/metropolitan-district-council/wolverhampton","Badenoch & Clark Recruit. Specialist","BL6615/00","3,012.05","Agency Staff","130147526","07/12/2016","Strategic Finance","Strategic Finance","R1100"
"Wolverhampton City Council","http://opendatacommunities.org/id/metropolitan-district-council/wolverhampton","Badenoch & Clark Recruit. Specialist","BP5658/00","2,100.00","Agency Staff","130149800","14/12/2016","Strategic Finance","Strategic Finance","R1100"
"Wolverhampton City Council","http://opendatacommunities.org/id/metropolitan-district-council/wolverhampton","Badenoch & Clark Recruit. Specialist","BN2903/00","1,750.00","Agency Staff","130148896","16/12/2016","ICTS","Digital Transformation Programme","R1100"
"Wolverhampton City Council","http://opendatacommunities.org/id/metropolitan-district-council/wolverhampton","Badenoch & Clark Recruit. Specialist","BN3024/00","2,860.00","Agency Staff","130148899","14/12/2016","City Development","City Development  - Core Team","R1100"
"Wolverhampton City Council","http://opendatacommunities.org/id/metropolitan-district-council/wolverhampton","Badenoch & Clark Recruit. Specialist","BR0195/00","1,575.00","Agency Staff","130150957","22/12/2016","ICTS","Digital Transformation Programme","R1100"
"Wolverhampton City Council","http://opendatacommunities.org/id/metropolitan-district-council/wolverhampton","Badenoch & Clark Recruit. Specialist","BM7427/00","3,275.00","Agency Staff","130148060","07/12/2016","Service Director Older People","Service Director Older People","R1100"
"Wolverhampton City Council","http://opendatacommunities.org/id/metropolitan-district-council/wolverhampton","Badenoch & Clark Recruit. Specialist","BN1901/00","2,175.00","Agency Staff","130149968","16/12/2016","Older People Commissioning","Head of Strategic Commissioning � People","R1100"
"Wolverhampton City Council","http://opendatacommunities.org/id/metropolitan-district-council/wolverhampton","Badenoch & Clark Recruit. Specialist","BL6616/00","3,012.05","Agency Staff","130147527","07/12/2016","Strategic Finance","Strategic Finance","R1100"
"Wolverhampton City Council","http://opendatacommunities.org/id/metropolitan-district-council/wolverhampton","Badenoch & Clark Recruit. Specialist","BN2901/00","1,750.00","Agency Staff","130148894","14/12/2016","ICTS","Digital Transformation Programme","R1100"
"Wolverhampton City Council","http://opendatacommunities.org/id/metropolitan-district-council/wolverhampton","Badenoch & Clark Recruit. Specialist","BP4430/00","787.50","Agency Staff","130149611","14/12/2016","ICTS","Digital Transformation Programme","R1100"
"Wolverhampton City Council","http://opendatacommunities.org/id/metropolitan-district-council/wolverhampton","Badenoch & Clark Recruit. Specialist","BQ7461/00","1,837.50","Agency Staff","130150385","21/12/2016","ICTS","Digital Transformation Programme","R1100"
"Wolverhampton City Council","http://opendatacommunities.org/id/metropolitan-district-council/wolverhampton","Badenoch & Clark Recruit. Specialist","BN2904/00","1,400.00","Agency Staff","130148897","16/12/2016","ICTS","Digital Transformation Programme","R1100"
"Wolverhampton City Council","http://opendatacommunities.org/id/metropolitan-district-council/wolverhampton","Badenoch & Clark Recruit. Specialist","BL7321/00","2,362.50","Agency Staff","130147529","07/12/2016","ICTS","Digital Transformation Programme","R1100"
"Wolverhampton City Council","http://opendatacommunities.org/id/metropolitan-district-council/wolverhampton","Badenoch & Clark Recruit. Specialist","BR1075/00","1,958.81","Agency Staff","130150959","22/12/2016","Strategic Finance","Strategic Finance","R1100"
"Wolverhampton City Council","http://opendatacommunities.org/id/metropolitan-district-council/wolverhampton","Badenoch & Clark Recruit. Specialist","BL6660/00","2,176.45","Agency Staff","130147528","07/12/2016","Strategic Finance","Strategic Finance","R1100"
"Wolverhampton City Council","http://opendatacommunities.org/id/metropolitan-district-council/wolverhampton","Badenoch & Clark Recruit. Specialist","BN2887/00","3,012.05","Agency Staff","130148893","14/12/2016","Strategic Finance","Strategic Finance","R1100"
"Wolverhampton City Council","http://opendatacommunities.org/id/metropolitan-district-council/wolverhampton","Badenoch & Clark Recruit. Specialist","BK1797/00","2,625.00","Agency Staff","130146780","02/12/2016","ICTS","Digital Transformation Programme","R1100"
"Wolverhampton City Council","http://opendatacommunities.org/id/metropolitan-district-council/wolverhampton","Bains Supersave Limited","APNEWS032","36.20","Books","130148279","07/12/2016","Library Services","Global Budgets","R4309"
"Wolverhampton City Council","http://opendatacommunities.org/id/metropolitan-district-council/wolverhampton","Barber Of Sheffield Limited","437819","264.65","Equipment - Purchase","130149744","16/12/2016","Bereavement Services","Coroners","R4000"
"Wolverhampton City Council","http://opendatacommunities.org/id/metropolitan-district-council/wolverhampton","Barber Of Sheffield Limited","450891","613.00","Equipment - Purchase","130144865","02/12/2016","Bereavement Services","Coroners","R4000"
"Wolverhampton City Council","http://opendatacommunities.org/id/metropolitan-district-council/wolverhampton","Barnardos Childrens Charity","146513676","4,776.00","TPP - Payments to voluntary groups","130149043","14/12/2016","Looked After Children","Adoption and Residence Team & Allowances","R5200"
"Wolverhampton City Council","http://opendatacommunities.org/id/metropolitan-district-council/wolverhampton","Barts Busy Bees","T42 Aut 16 Inst 1 & 2","3,780.00","Grant Payments","190295454","16/12/2016","Early Years","2 Year Olds Pilot - Early Learning & Childcare","R4700"
"Wolverhampton City Council","http://opendatacommunities.org/id/metropolitan-district-council/wolverhampton","Barts Busy Bees","NEF Aut 16 Inst 1 & 2","244.65","TPP - Private Nursery Education Funding","190295455","16/12/2016","Early Years","Early Years Non Maintained Schools","R5035"
"Wolverhampton City Council","http://opendatacommunities.org/id/metropolitan-district-council/wolverhampton","Barts Busy Bees","T42 Aut 16 Inst 2","3,814.65","Grant Payments","190296006","16/12/2016","Early Years","2 Year Olds Pilot - Early Learning & Childcare","R4700"
"Wolverhampton City Council","http://opendatacommunities.org/id/metropolitan-district-council/wolverhampton","Barts Busy Bees","NEF Aut 16 Inst 2","6,370.46","TPP - Private Nursery Education Funding","190296021","16/12/2016","Early Years","Early Years Non Maintained Schools","R5035"
"Wolverhampton City Council","http://opendatacommunities.org/id/metropolitan-district-council/wolverhampton","Base 25","2867","348.00","TPP - Public Health Contracts","130147097","14/12/2016","Early Intervention","EIP Locality 6","R5060"
"Wolverhampton City Council","http://opendatacommunities.org/id/metropolitan-district-council/wolverhampton","Bbp.Security Services & Training Limited","062WCC141216","462.88","Services - Security","130150075","21/12/2016","Leisure Services","Central Baths","R4405"
"Wolverhampton City Council","http://opendatacommunities.org/id/metropolitan-district-council/wolverhampton","Bbp.Security Services & Training Limited","066WCC141216","7,650.00","Services - Security","130150079","21/12/2016","Facilities Management","Management of Vacant Properties","R4405"
"Wolverhampton City Council","http://opendatacommunities.org/id/metropolitan-district-council/wolverhampton","Bbp.Security Services & Training Limited","989CIV171116","7,955.46","Services - Security","130150182","21/12/2016","Visitor Economy","Civic & Wulfrun Outhouse & Other Comercial Events","R4405"
"Wolverhampton City Council","http://opendatacommunities.org/id/metropolitan-district-council/wolverhampton","Bbp.Security Services & Training Limited","994CIV281116","4,698.79","Services - Security","130150186","21/12/2016","Visitor Economy","Civic & Wulfrun Outhouse & Other Comercial Events","R4405"
"Wolverhampton City Council","http://opendatacommunities.org/id/metropolitan-district-council/wolverhampton","Bbp.Security Services & Training Limited","090CHS211116","242.00","Support Service Recharge - Services to Schools","130150787","21/12/2016","Schools","Coppice Community High School","R7030"
"Wolverhampton City Council","http://opendatacommunities.org/id/metropolitan-district-council/wolverhampton","Bbp.Security Services & Training Limited","999CIV141216OE","774.19","Services - Security","130150188","21/12/2016","Democratic Services","Mayoral Expenses","R4405"
"Wolverhampton City Council","http://opendatacommunities.org/id/metropolitan-district-council/wolverhampton","Bbp.Security Services & Training Limited","063WCC141216","555.50","Services - Security","130150076","21/12/2016","Maintenance Programme","Centralised R&M","R4405"
"Wolverhampton City Council","http://opendatacommunities.org/id/metropolitan-district-council/wolverhampton","Bbp.Security Services & Training Limited","065WCC141216","2,518.50","Plant, Equipment, Machinery & Computer Hardware","130150078","22/12/2016","-","GF - Leisure Centres Enhancement","C3000"
"Wolverhampton City Council","http://opendatacommunities.org/id/metropolitan-district-council/wolverhampton","Bbp.Security Services & Training Limited","995CIV141216OE","2,539.81","Services - Security","130150187","21/12/2016","Visitor Economy","Christmas Festivities","R4405"
"Wolverhampton City Council","http://opendatacommunities.org/id/metropolitan-district-council/wolverhampton","Bbp.Security Services & Training Limited","091CHS211116","133.75","Support Service Recharge - Services to Schools","130150788","21/12/2016","Schools","Coppice Community High School","R7030"
"Wolverhampton City Council","http://opendatacommunities.org/id/metropolitan-district-council/wolverhampton","BCC Mac T/A St Teresa�S Catholic","St Teresa dsc mls Apr 16","46.62","School Meals","190291063","02/12/2016","Schools","Discounted School Meals Scheme","R4103"
"Wolverhampton City Council","http://opendatacommunities.org/id/metropolitan-district-council/wolverhampton","SS Peter & Paul Cath. Primary & Nursery","P13186820161205","600.00","Grant Payments to Individuals","190291791","07/12/2016","Looked After Children","LAC Education Team (LACE)","R6402"
"Wolverhampton City Council","http://opendatacommunities.org/id/metropolitan-district-council/wolverhampton","SS Peter & Paul Cath. Primary & Nursery","P13186820161205","600.00","Grant Payments to Individuals","190291791","07/12/2016","Looked After Children","LAC Education Team (LACE)","R6402"
"Wolverhampton City Council","http://opendatacommunities.org/id/metropolitan-district-council/wolverhampton","Beacon Centre For The Blind","BCI2464920161221","350.00","TPP - Day Care","190297993","22/12/2016","Older People Assessment & Care Management","OP Care Purchasing (Spot Placements)","R5430"
"Wolverhampton City Council","http://opendatacommunities.org/id/metropolitan-district-council/wolverhampton","Beacon Centre For The Blind","BCI2464920161221","500.00","TPP - Day Care","190297993","22/12/2016","Older People Assessment & Care Management","OP Care Purchasing (Spot Placements)","R5430"
"Wolverhampton City Council","http://opendatacommunities.org/id/metropolitan-district-council/wolverhampton","Beacon Centre For The Blind","BCI2464920161221","400.00","TPP - Day Care","190297993","22/12/2016","Older People Assessment & Care Management","OP Care Purchasing (Spot Placements)","R5430"
"Wolverhampton City Council","http://opendatacommunities.org/id/metropolitan-district-council/wolverhampton","Beacon Centre For The Blind","BCI2464920161221","300.00","TPP - Day Care","190297993","22/12/2016","Older People Assessment & Care Management","OP Care Purchasing (Spot Placements)","R5430"
"Wolverhampton City Council","http://opendatacommunities.org/id/metropolitan-district-council/wolverhampton","Beacon Centre For The Blind","BCI2464920161221","600.00","TPP - Day Care","190297993","22/12/2016","Older People Assessment & Care Management","OP Care Purchasing (Spot Placements)","R5430"
"Wolverhampton City Council","http://opendatacommunities.org/id/metropolitan-district-council/wolverhampton","Beacon Centre For The Blind","BCI2464920161221","350.00","TPP - Day Care","190297993","22/12/2016","Older People Assessment & Care Management","OP Care Purchasing (Spot Placements)","R5430"
"Wolverhampton City Council","http://opendatacommunities.org/id/metropolitan-district-council/wolverhampton","Beacon Centre For The Blind","BCI2464920161221","950.00","TPP - Day Care","190297993","22/12/2016","Older People Assessment & Care Management","OP Care Purchasing (Spot Placements)","R5430"
"Wolverhampton City Council","http://opendatacommunities.org/id/metropolitan-district-council/wolverhampton","Beacon Centre For The Blind","BCI2464820161221","96.60","TPP - Day Care","190297992","22/12/2016","Older People Assessment & Care Management","OP Care Purchasing (Spot Placements)","R5430"
"Wolverhampton City Council","http://opendatacommunities.org/id/metropolitan-district-council/wolverhampton","Beacon Centre For The Blind","BCI2464820161221","96.60","TPP - Day Care","190297992","22/12/2016","Older People Assessment & Care Management","OP Care Purchasing (Spot Placements)","R5430"
"Wolverhampton City Council","http://opendatacommunities.org/id/metropolitan-district-council/wolverhampton","Beacon Centre For The Blind","BCI2464820161221","96.60","TPP - Day Care","190297992","22/12/2016","Older People Assessment & Care Management","OP Care Purchasing (Spot Placements)","R5430"
"Wolverhampton City Council","http://opendatacommunities.org/id/metropolitan-district-council/wolverhampton","Beacon Centre For The Blind","BCI2464820161221","144.90","TPP - Day Care","190297992","22/12/2016","Older People Assessment & Care Management","OP Care Purchasing (Spot Placements)","R5430"
"Wolverhampton City Council","http://opendatacommunities.org/id/metropolitan-district-council/wolverhampton","Beacon Centre For The Blind","BCI2464820161221","193.20","TPP - Day Care","190297992","22/12/2016","Older People Assessment & Care Management","OP Care Purchasing (Spot Placements)","R5430"
"Wolverhampton City Council","http://opendatacommunities.org/id/metropolitan-district-council/wolverhampton","Beacon Centre For The Blind","BCI2464820161221","193.20","TPP - Day Care","190297992","22/12/2016","Older People Assessment & Care Management","OP Care Purchasing (Spot Placements)","R5430"
"Wolverhampton City Council","http://opendatacommunities.org/id/metropolitan-district-council/wolverhampton","Beacon Centre For The Blind","BCI2464820161221","169.05","TPP - Day Care","190297992","22/12/2016","Older People Assessment & Care Management","OP Care Purchasing (Spot Placements)","R5430"
"Wolverhampton City Council","http://opendatacommunities.org/id/metropolitan-district-council/wolverhampton","Beacon Centre For The Blind","BCI2464820161221","72.45","TPP - Day Care","190297992","22/12/2016","Older People Assessment & Care Management","OP Care Purchasing (Spot Placements)","R5430"
"Wolverhampton City Council","http://opendatacommunities.org/id/metropolitan-district-council/wolverhampton","Beacon Centre For The Blind","BCI2464820161221","120.75","TPP - Day Care","190297992","22/12/2016","Older People Assessment & Care Management","OP Care Purchasing (Spot Placements)","R5430"
"Wolverhampton City Council","http://opendatacommunities.org/id/metropolitan-district-council/wolverhampton","Beacon Centre For The Blind","BCI2464820161221","96.60","TPP - Day Care","190297992","22/12/2016","Older People Assessment & Care Management","OP Care Purchasing (Spot Placements)","R5430"
"Wolverhampton City Council","http://opendatacommunities.org/id/metropolitan-district-council/wolverhampton","Beacon Centre For The Blind","BCI2464820161221","24.15","TPP - Day Care","190297992","22/12/2016","Older People Assessment & Care Management","OP Care Purchasing (Spot Placements)","R5430"
"Wolverhampton City Council","http://opendatacommunities.org/id/metropolitan-district-council/wolverhampton","Beacon Centre For The Blind","BCI2464820161221","24.15","TPP - Day Care","190297992","22/12/2016","Older People Assessment & Care Management","OP Care Purchasing (Spot Placements)","R5430"
"Wolverhampton City Council","http://opendatacommunities.org/id/metropolitan-district-council/wolverhampton","Beacon Centre For The Blind","BCI2464820161221","72.45","TPP - Day Care","190297992","22/12/2016","Older People Assessment & Care Management","OP Care Purchasing (Spot Placements)","R5430"
"Wolverhampton City Council","http://opendatacommunities.org/id/metropolitan-district-council/wolverhampton","Beacon Centre For The Blind","BCI2464820161221","72.45","TPP - Day Care","190297992","22/12/2016","Older People Assessment & Care Management","OP Care Purchasing (Spot Placements)","R5430"
"Wolverhampton City Council","http://opendatacommunities.org/id/metropolitan-district-council/wolverhampton","Beacon Centre For The Blind","BCI2464820161221","72.45","TPP - Day Care","190297992","22/12/2016","Older People Assessment & Care Management","OP Care Purchasing (Spot Placements)","R5430"
"Wolverhampton City Council","http://opendatacommunities.org/id/metropolitan-district-council/wolverhampton","Beacon Centre For The Blind","BCI2464820161221","48.30","TPP - Day Care","190297992","22/12/2016","Older People Assessment & Care Management","OP Care Purchasing (Spot Placements)","R5430"
"Wolverhampton City Council","http://opendatacommunities.org/id/metropolitan-district-council/wolverhampton","Beacon Centre For The Blind","BCI2464820161221","72.45","TPP - Day Care","190297992","22/12/2016","Older People Assessment & Care Management","OP Care Purchasing (Spot Placements)","R5430"
"Wolverhampton City Council","http://opendatacommunities.org/id/metropolitan-district-council/wolverhampton","Beacon Centre For The Blind","BCI2464820161221","48.30","TPP - Day Care","190297992","22/12/2016","Older People Assessment & Care Management","OP Care Purchasing (Spot Placements)","R5430"
"Wolverhampton City Council","http://opendatacommunities.org/id/metropolitan-district-council/wolverhampton","Beacon Centre For The Blind","BCI2464820161221","72.45","TPP - Day Care","190297992","22/12/2016","Older People Assessment & Care Management","OP Care Purchasing (Spot Placements)","R5430"
"Wolverhampton City Council","http://opendatacommunities.org/id/metropolitan-district-council/wolverhampton","Beacon Centre For The Blind","BCI2464820161221","96.60","TPP - Day Care","190297992","22/12/2016","Older People Assessment & Care Management","OP Care Purchasing (Spot Placements)","R5430"
"Wolverhampton City Council","http://opendatacommunities.org/id/metropolitan-district-council/wolverhampton","Beacon Centre For The Blind","BCI2464820161221","48.30","TPP - Day Care","190297992","22/12/2016","Older People Assessment & Care Management","OP Care Purchasing (Spot Placements)","R5430"
"Wolverhampton City Council","http://opendatacommunities.org/id/metropolitan-district-council/wolverhampton","Beacon Centre For The Blind","BCI2464820161221","96.60","TPP - Day Care","190297992","22/12/2016","Older People Assessment & Care Management","OP Care Purchasing (Spot Placements)","R5430"
"Wolverhampton City Council","http://opendatacommunities.org/id/metropolitan-district-council/wolverhampton","Beacon Centre For The Blind","BCI2464820161221","96.60","TPP - Day Care","190297992","22/12/2016","Older People Assessment & Care Management","OP Care Purchasing (Spot Placements)","R5430"
"Wolverhampton City Council","http://opendatacommunities.org/id/metropolitan-district-council/wolverhampton","Beacon Centre For The Blind","BCI2464820161221","96.60","TPP - Day Care","190297992","22/12/2016","Older People Assessment & Care Management","OP Care Purchasing (Spot Placements)","R5430"
"Wolverhampton City Council","http://opendatacommunities.org/id/metropolitan-district-council/wolverhampton","Beacon Centre For The Blind","BCI2464820161221","96.60","TPP - Day Care","190297992","22/12/2016","Older People Assessment & Care Management","OP Care Purchasing (Spot Placements)","R5430"
"Wolverhampton City Council","http://opendatacommunities.org/id/metropolitan-district-council/wolverhampton","Beacon Centre For The Blind","BCI2464820161221","96.60","TPP - Day Care","190297992","22/12/2016","Older People Assessment & Care Management","OP Care Purchasing (Spot Placements)","R5430"
"Wolverhampton City Council","http://opendatacommunities.org/id/metropolitan-district-council/wolverhampton","Beacon Centre For The Blind","BCI2464820161221","72.45","TPP - Day Care","190297992","22/12/2016","Older People Assessment & Care Management","OP Care Purchasing (Spot Placements)","R5430"
"Wolverhampton City Council","http://opendatacommunities.org/id/metropolitan-district-council/wolverhampton","Beacon Centre For The Blind","BCI2464820161221","24.15","TPP - Day Care","190297992","22/12/2016","Older People Assessment & Care Management","OP Care Purchasing (Spot Placements)","R5430"
"Wolverhampton City Council","http://opendatacommunities.org/id/metropolitan-district-council/wolverhampton","Beacon Centre For The Blind","BCI2464820161221","120.75","TPP - Day Care","190297992","22/12/2016","Older People Assessment & Care Management","OP Care Purchasing (Spot Placements)","R5430"
"Wolverhampton City Council","http://opendatacommunities.org/id/metropolitan-district-council/wolverhampton","Beacon Centre For The Blind","BCI2464820161221","72.45","TPP - Day Care","190297992","22/12/2016","Older People Assessment & Care Management","OP Care Purchasing (Spot Placements)","R5430"
"Wolverhampton City Council","http://opendatacommunities.org/id/metropolitan-district-council/wolverhampton","Beacon Centre For The Blind","BCI2464820161221","96.60","TPP - Day Care","190297992","22/12/2016","Older People Assessment & Care Management","OP Care Purchasing (Spot Placements)","R5430"
"Wolverhampton City Council","http://opendatacommunities.org/id/metropolitan-district-council/wolverhampton","Beacon Centre For The Blind","BCI2464820161221","169.05","TPP - Day Care","190297992","22/12/2016","Older People Assessment & Care Management","OP Care Purchasing (Spot Placements)","R5430"
"Wolverhampton City Council","http://opendatacommunities.org/id/metropolitan-district-council/wolverhampton","Beacon Centre For The Blind","BCI2464820161221","96.60","TPP - Day Care","190297992","22/12/2016","Older People Assessment & Care Management","OP Care Purchasing (Spot Placements)","R5430"
"Wolverhampton City Council","http://opendatacommunities.org/id/metropolitan-district-council/wolverhampton","Beacon Centre For The Blind","BCI2464820161221","96.60","TPP - Day Care","190297992","22/12/2016","Older People Assessment & Care Management","OP Care Purchasing (Spot Placements)","R5430"
"Wolverhampton City Council","http://opendatacommunities.org/id/metropolitan-district-council/wolverhampton","Beacon Centre For The Blind","BCI2464820161221","169.05","TPP - Day Care","190297992","22/12/2016","Older People Assessment & Care Management","OP Care Purchasing (Spot Placements)","R5430"
"Wolverhampton City Council","http://opendatacommunities.org/id/metropolitan-district-council/wolverhampton","Beacon Centre For The Blind","BCI2464820161221","96.60","TPP - Day Care","190297992","22/12/2016","Older People Assessment & Care Management","OP Care Purchasing (Spot Placements)","R5430"
"Wolverhampton City Council","http://opendatacommunities.org/id/metropolitan-district-council/wolverhampton","Beacon Centre For The Blind","BCI2464820161221","169.05","TPP - Day Care","190297992","22/12/2016","Older People Assessment & Care Management","OP Care Purchasing (Spot Placements)","R5430"
"Wolverhampton City Council","http://opendatacommunities.org/id/metropolitan-district-council/wolverhampton","Beacon Centre For The Blind","BCI2464820161221","169.05","TPP - Day Care","190297992","22/12/2016","Older People Assessment & Care Management","OP Care Purchasing (Spot Placements)","R5430"
"Wolverhampton City Council","http://opendatacommunities.org/id/metropolitan-district-council/wolverhampton","Beacon Centre For The Blind","BCI2464820161221","48.30","TPP - Day Care","190297992","22/12/2016","Older People Assessment & Care Management","OP Care Purchasing (Spot Placements)","R5430"
"Wolverhampton City Council","http://opendatacommunities.org/id/metropolitan-district-council/wolverhampton","Beacon Centre For The Blind","BCI2464820161221","289.80","TPP - Day Care","190297992","22/12/2016","Older People Assessment & Care Management","OP Care Purchasing (Spot Placements)","R5430"
"Wolverhampton City Council","http://opendatacommunities.org/id/metropolitan-district-council/wolverhampton","Beacon Centre For The Blind","BCI2464820161221","96.60","TPP - Day Care","190297992","22/12/2016","Older People Assessment & Care Management","OP Care Purchasing (Spot Placements)","R5430"
"Wolverhampton City Council","http://opendatacommunities.org/id/metropolitan-district-council/wolverhampton","Beacon Centre For The Blind","BCI2464820161221","193.20","TPP - Day Care","190297992","22/12/2016","Older People Assessment & Care Management","OP Care Purchasing (Spot Placements)","R5430"
"Wolverhampton City Council","http://opendatacommunities.org/id/metropolitan-district-council/wolverhampton","Beacon Centre For The Blind","BCI2464820161221","96.60","TPP - Day Care","190297992","22/12/2016","Older People Assessment & Care Management","OP Care Purchasing (Spot Placements)","R5430"
"Wolverhampton City Council","http://opendatacommunities.org/id/metropolitan-district-council/wolverhampton","Beacon Centre For The Blind","BCI2464820161221","289.80","TPP - Day Care","190297992","22/12/2016","Older People Assessment & Care Management","OP Care Purchasing (Spot Placements)","R5430"
"Wolverhampton City Council","http://opendatacommunities.org/id/metropolitan-district-council/wolverhampton","Beacon Centre For The Blind","BCI2464820161221","48.30","TPP - Day Care","190297992","22/12/2016","Older People Assessment & Care Management","OP Care Purchasing (Spot Placements)","R5430"
"Wolverhampton City Council","http://opendatacommunities.org/id/metropolitan-district-council/wolverhampton","Berendsen UK Limited","SN2545930","186.52","Protective Clothing","190294287","14/12/2016","Fleet Services","Fleet Management","R4200"
"Wolverhampton City Council","http://opendatacommunities.org/id/metropolitan-district-council/wolverhampton","Berrybrook Primary School Fund A/C","T42 Aut 16 Inst 2","7,590.00","Grant Payments","190295499","16/12/2016","Early Years","2 Year Olds Pilot - Early Learning & Childcare","R4700"
"Wolverhampton City Council","http://opendatacommunities.org/id/metropolitan-district-council/wolverhampton","Berrymans Lace Mawer","V2188751\WOLVCC01","1,000.00","Insurance - General","130144055","21/12/2016","Audit Services","Legal Liability","R4962"
"Wolverhampton City Council","http://opendatacommunities.org/id/metropolitan-district-council/wolverhampton","Beverages Direct Limited","684014","277.50","Provisions (Resale)","130146549","21/12/2016","Catering","Education Catering - General Overheads","R4102"
"Wolverhampton City Council","http://opendatacommunities.org/id/metropolitan-district-council/wolverhampton","Beverages Direct Limited","684014","-277.50","Provisions (Resale)","130146549","21/12/2016","Catering","Education Catering - General Overheads","R4102"
"Wolverhampton City Council","http://opendatacommunities.org/id/metropolitan-district-council/wolverhampton","Beverages Direct Limited","684014","104.52","Provisions (Resale)","130146549","21/12/2016","Catering","Education Catering - General Overheads","R4102"
"Wolverhampton City Council","http://opendatacommunities.org/id/metropolitan-district-council/wolverhampton","Beverages Direct Limited","684014","172.98","Provisions (Resale)","130146549","21/12/2016","Catering","Education Catering - General Overheads","R4102"
"Wolverhampton City Council","http://opendatacommunities.org/id/metropolitan-district-council/wolverhampton","Beverages Direct Limited","684501","160.22","Provisions (Resale)","130149946","16/12/2016","Catering","Education Catering - General Overheads","R4102"
"Wolverhampton City Council","http://opendatacommunities.org/id/metropolitan-district-council/wolverhampton","Beverages Direct Limited","684501","-160.22","Provisions (Resale)","130149946","16/12/2016","Catering","Education Catering - General Overheads","R4102"
"Wolverhampton City Council","http://opendatacommunities.org/id/metropolitan-district-council/wolverhampton","Beverages Direct Limited","684501","72.96","Provisions (Resale)","130149946","16/12/2016","Catering","Education Catering - General Overheads","R4102"
"Wolverhampton City Council","http://opendatacommunities.org/id/metropolitan-district-council/wolverhampton","Beverages Direct Limited","684501","87.26","Provisions (Resale)","130149946","16/12/2016","Catering","Education Catering - General Overheads","R4102"
"Wolverhampton City Council","http://opendatacommunities.org/id/metropolitan-district-council/wolverhampton","Beverages Direct Limited","684548","173.77","Provisions (Resale)","130148025","21/12/2016","Catering","Education Catering - General Overheads","R4102"
"Wolverhampton City Council","http://opendatacommunities.org/id/metropolitan-district-council/wolverhampton","Beverages Direct Limited","684548","87.28","Provisions (Resale)","130148025","21/12/2016","Catering","Education Catering - General Overheads","R4102"
"Wolverhampton City Council","http://opendatacommunities.org/id/metropolitan-district-council/wolverhampton","Beverages Direct Limited","684548","86.49","Provisions (Resale)","130148025","21/12/2016","Catering","Education Catering - General Overheads","R4102"
"Wolverhampton City Council","http://opendatacommunities.org/id/metropolitan-district-council/wolverhampton","Beverages Direct Limited","684548","-173.77","Provisions (Resale)","130148025","21/12/2016","Catering","Education Catering - General Overheads","R4102"
"Wolverhampton City Council","http://opendatacommunities.org/id/metropolitan-district-council/wolverhampton","Bickford Truck Hire Limited","320025","1,870.00","Hire of Vehicles","190295825","16/12/2016","Fleet Services","Fleet Management","R3200"
"Wolverhampton City Council","http://opendatacommunities.org/id/metropolitan-district-council/wolverhampton","Bild","36492","8,325.00","Training Expenses","130151230","22/12/2016","Human Resources","Workforce Development","R1650"
"Wolverhampton City Council","http://opendatacommunities.org/id/metropolitan-district-council/wolverhampton","Birmingham Museums Limited","SINV12079","643.57","Equipment - Purchase","130150797","21/12/2016","Schools","Coppice Community High School","R4000"
"Wolverhampton City Council","http://opendatacommunities.org/id/metropolitan-district-council/wolverhampton","Birmingham Museums Limited","SINV12079","1,561.43","Education trips, Holidays, Outings & Activities","130150797","21/12/2016","Schools","Coppice Community High School","R4970"
"Wolverhampton City Council","http://opendatacommunities.org/id/metropolitan-district-council/wolverhampton","Birmingham Museums Limited","SINV12296","357.18","Training Expenses","130149233","22/12/2016","Visitor Economy","Museum Resilience Project - ACE","R1650"
"Wolverhampton City Council","http://opendatacommunities.org/id/metropolitan-district-council/wolverhampton","Birmingham Museums Limited","SINV12296","-357.18","Training Expenses","130149233","22/12/2016","Visitor Economy","Museum Resilience Project - ACE","R1650"
"Wolverhampton City Council","http://opendatacommunities.org/id/metropolitan-district-council/wolverhampton","Birmingham Museums Limited","SINV12296","357.18","Training Expenses","130149233","22/12/2016","Visitor Economy","Museum Resilience Project - ACE","R1650"
"Wolverhampton City Council","http://opendatacommunities.org/id/metropolitan-district-council/wolverhampton","Blakenhall Neighbourhood Nursery","T42 Aut 16 Inst 2","5,880.00","Grant Payments","190296006","16/12/2016","Early Years","2 Year Olds Pilot - Early Learning & Childcare","R4700"
"Wolverhampton City Council","http://opendatacommunities.org/id/metropolitan-district-council/wolverhampton","Blakenhall Neighbourhood Nursery","NEF Aut 16 Inst 2","10,254.15","TPP - Private Nursery Education Funding","190296021","16/12/2016","Early Years","Early Years Non Maintained Schools","R5035"
"Wolverhampton City Council","http://opendatacommunities.org/id/metropolitan-district-council/wolverhampton","Blue Diamond Stl","0000190295","196.80","Materials","130149428","16/12/2016","Operation & Maintenance of Existing Network","Condition Surveys","R4007"
"Wolverhampton City Council","http://opendatacommunities.org/id/metropolitan-district-council/wolverhampton","Blue Group Interntl Limited T/A Bluecare","HSOC5611309","1,258.00","Agency Staff","130148287","14/12/2016","Child Protection","CIN/CP Social Work Unit - Area 5","R1100"
"Wolverhampton City Council","http://opendatacommunities.org/id/metropolitan-district-council/wolverhampton","Blue Group Interntl Limited T/A Bluecare","HSOC5611800","1,258.00","Agency Staff","130148086","14/12/2016","Child Protection","CIN/CP Social Work Unit - Area 6","R1100"
"Wolverhampton City Council","http://opendatacommunities.org/id/metropolitan-district-council/wolverhampton","Blue Group Interntl Limited T/A Bluecare","HSOC5613348","1,332.00","Agency Staff","130146787","21/12/2016","Child Protection","CIN/CP Social Work Unit - Area 4","R1100"
"Wolverhampton City Council","http://opendatacommunities.org/id/metropolitan-district-council/wolverhampton","Blue Group Interntl Limited T/A Bluecare","HSOC5613348","-1,332.00","Agency Staff","130146787","21/12/2016","Child Protection","CIN/CP Social Work Unit - Area 4","R1100"
"Wolverhampton City Council","http://opendatacommunities.org/id/metropolitan-district-council/wolverhampton","Blue Group Interntl Limited T/A Bluecare","HSOC5613348","1,332.00","Agency Staff","130146787","21/12/2016","Child Protection","CIN/CP Social Work Unit - Area 4","R1100"
"Wolverhampton City Council","http://opendatacommunities.org/id/metropolitan-district-council/wolverhampton","Blue Group Interntl Limited T/A Bluecare","HSOC5610550","1,246.78","Agency Staff","130148286","09/12/2016","Child Protection","CIN/CP Social Work Unit - Area 2","R1100"
"Wolverhampton City Council","http://opendatacommunities.org/id/metropolitan-district-council/wolverhampton","Blue Group Interntl Limited T/A Bluecare","HSOC5610550","-1,246.78","Agency Staff","130148286","09/12/2016","Child Protection","CIN/CP Social Work Unit - Area 2","R1100"
"Wolverhampton City Council","http://opendatacommunities.org/id/metropolitan-district-council/wolverhampton","Blue Group Interntl Limited T/A Bluecare","HSOC5610550","1,246.78","Agency Staff","130148286","09/12/2016","Child Protection","CIN/CP Social Work Unit - Area 2","R1100"
"Wolverhampton City Council","http://opendatacommunities.org/id/metropolitan-district-council/wolverhampton","Blue Group Interntl Limited T/A Bluecare","HSOC5613103","1,258.00","Agency Staff","130148087","16/12/2016","Child Protection","CIN/CP Social Work Unit - Area 6","R1100"
"Wolverhampton City Council","http://opendatacommunities.org/id/metropolitan-district-council/wolverhampton","Blue Group Interntl Limited T/A Bluecare","HSOC5609871","748.00","Agency Staff","130148284","09/12/2016","Child Protection","CIN/CP Social Work Unit - Area 2","R1100"
"Wolverhampton City Council","http://opendatacommunities.org/id/metropolitan-district-council/wolverhampton","Blue Group Interntl Limited T/A Bluecare","HSOC5609871","-748.00","Agency Staff","130148284","09/12/2016","Child Protection","CIN/CP Social Work Unit - Area 2","R1100"
"Wolverhampton City Council","http://opendatacommunities.org/id/metropolitan-district-council/wolverhampton","Blue Group Interntl Limited T/A Bluecare","HSOC5609871","748.00","Agency Staff","130148284","09/12/2016","Child Protection","CIN/CP Social Work Unit - Area 2","R1100"
"Wolverhampton City Council","http://opendatacommunities.org/id/metropolitan-district-council/wolverhampton","Blue Group Interntl Limited T/A Bluecare","HSOC5613863","1,258.00","Agency Staff","130147166","21/12/2016","Child Protection","CIN/CP Social Work Unit - Area 5","R1100"
"Wolverhampton City Council","http://opendatacommunities.org/id/metropolitan-district-council/wolverhampton","Blue Group Interntl Limited T/A Bluecare","HSOC5610548","1,332.00","Agency Staff","130144565","02/12/2016","Child Protection","CIN/CP Social Work Unit - Area 4","R1100"
"Wolverhampton City Council","http://opendatacommunities.org/id/metropolitan-district-council/wolverhampton","Blue Group Interntl Limited T/A Bluecare","HSOC5610548","-1,332.00","Agency Staff","130144565","02/12/2016","Child Protection","CIN/CP Social Work Unit - Area 4","R1100"
"Wolverhampton City Council","http://opendatacommunities.org/id/metropolitan-district-council/wolverhampton","Blue Group Interntl Limited T/A Bluecare","HSOC5610548","1,332.00","Agency Staff","130144565","02/12/2016","Child Protection","CIN/CP Social Work Unit - Area 4","R1100"
"Wolverhampton City Council","http://opendatacommunities.org/id/metropolitan-district-council/wolverhampton","Blue Group Interntl Limited T/A Bluecare","HSOC5615033","88.56","Agency Staff","130147784","22/12/2016","Child Protection","CIN/CP Social Work Unit - Area 4","R1100"
"Wolverhampton City Council","http://opendatacommunities.org/id/metropolitan-district-council/wolverhampton","Blue Group Interntl Limited T/A Bluecare","HSOC5615033","-88.56","Agency Staff","130147784","22/12/2016","Child Protection","CIN/CP Social Work Unit - Area 4","R1100"
"Wolverhampton City Council","http://opendatacommunities.org/id/metropolitan-district-council/wolverhampton","Blue Group Interntl Limited T/A Bluecare","HSOC5615033","88.56","Agency Staff","130147784","22/12/2016","Child Protection","CIN/CP Social Work Unit - Area 4","R1100"
"Wolverhampton City Council","http://opendatacommunities.org/id/metropolitan-district-council/wolverhampton","Blue Group Interntl Limited T/A Bluecare","HSOC5609166","1,258.00","Agency Staff","130148283","09/12/2016","Child Protection","CIN/CP Social Work Unit - Area 2","R1100"
"Wolverhampton City Council","http://opendatacommunities.org/id/metropolitan-district-council/wolverhampton","Blue Group Interntl Limited T/A Bluecare","HSOC5609166","-1,258.00","Agency Staff","130148283","09/12/2016","Child Protection","CIN/CP Social Work Unit - Area 2","R1100"
"Wolverhampton City Council","http://opendatacommunities.org/id/metropolitan-district-council/wolverhampton","Blue Group Interntl Limited T/A Bluecare","HSOC5609166","1,258.00","Agency Staff","130148283","09/12/2016","Child Protection","CIN/CP Social Work Unit - Area 2","R1100"
"Wolverhampton City Council","http://opendatacommunities.org/id/metropolitan-district-council/wolverhampton","Blue Mountain Foods Limited","7040","57.00","Provisions (Resale)","130147691","22/12/2016","Catering","Education Catering - General Overheads","R4102"
"Wolverhampton City Council","http://opendatacommunities.org/id/metropolitan-district-council/wolverhampton","Blue Mountain Foods Limited","7059","38.00","Provisions (Resale)","130148256","22/12/2016","Catering","Meals on Wheels","R4102"
"Wolverhampton City Council","http://opendatacommunities.org/id/metropolitan-district-council/wolverhampton","Blue Mountain Foods Limited","7051","38.00","Provisions (Resale)","130147698","22/12/2016","Catering","Education Catering - General Overheads","R4102"
"Wolverhampton City Council","http://opendatacommunities.org/id/metropolitan-district-council/wolverhampton","Blue Mountain Foods Limited","7060","19.00","Provisions (Resale)","130148257","22/12/2016","Catering","Education Catering - General Overheads","R4102"
"Wolverhampton City Council","http://opendatacommunities.org/id/metropolitan-district-council/wolverhampton","Blue Mountain Foods Limited","7052","57.00","Provisions (Resale)","130147699","22/12/2016","Catering","Education Catering - General Overheads","R4102"
"Wolverhampton City Council","http://opendatacommunities.org/id/metropolitan-district-council/wolverhampton","Blue Mountain Foods Limited","7042","57.00","Provisions (Resale)","130147692","22/12/2016","Catering","Education Catering - General Overheads","R4102"
"Wolverhampton City Council","http://opendatacommunities.org/id/metropolitan-district-council/wolverhampton","Blue Mountain Foods Limited","7046","57.00","Provisions (Resale)","130147694","22/12/2016","Catering","Education Catering - General Overheads","R4102"
"Wolverhampton City Council","http://opendatacommunities.org/id/metropolitan-district-council/wolverhampton","Blue Mountain Foods Limited","7050","182.00","Provisions (Resale)","130147697","22/12/2016","Catering","Meals on Wheels","R4102"
"Wolverhampton City Council","http://opendatacommunities.org/id/metropolitan-district-council/wolverhampton","Blue Mountain Foods Limited","7047","57.00","Provisions (Resale)","130147695","22/12/2016","Catering","Education Catering - General Overheads","R4102"
"Wolverhampton City Council","http://opendatacommunities.org/id/metropolitan-district-council/wolverhampton","Blue Mountain Foods Limited","7053","19.00","Provisions (Resale)","130147700","22/12/2016","Catering","Education Catering - General Overheads","R4102"
"Wolverhampton City Council","http://opendatacommunities.org/id/metropolitan-district-council/wolverhampton","Blue Mountain Foods Limited","7049","57.00","Provisions (Resale)","130147696","22/12/2016","Catering","Education Catering - General Overheads","R4102"
"Wolverhampton City Council","http://opendatacommunities.org/id/metropolitan-district-council/wolverhampton","BME Travel","1773","2,300.00","Client Transport","130148580","22/12/2016","School Planning & Resources","Special - Transport","R3042"
"Wolverhampton City Council","http://opendatacommunities.org/id/metropolitan-district-council/wolverhampton","Boc Limited","3038746567","169.56","Gas","130147104","21/12/2016","Visitor Economy","Catering Overhead Account","R2101"
"Wolverhampton City Council","http://opendatacommunities.org/id/metropolitan-district-council/wolverhampton","Boc Limited","3038816708","91.79","Gas","130148234","22/12/2016","Visitor Economy","The Little Civic","R2101"
"Wolverhampton City Council","http://opendatacommunities.org/id/metropolitan-district-council/wolverhampton","Boc Limited","3038668861","262.38","Gas","130145499","07/12/2016","Visitor Economy","Catering Overhead Account","R2101"
"Wolverhampton City Council","http://opendatacommunities.org/id/metropolitan-district-council/wolverhampton","Boc Limited","3039129919","160.28","Rent","130150131","22/12/2016","Visitor Economy","Catering Overhead Account","R2200"
"Wolverhampton City Council","http://opendatacommunities.org/id/metropolitan-district-council/wolverhampton","Boc Limited","3038872139","183.89","Gas","130148235","22/12/2016","Visitor Economy","Catering Overhead Account","R2101"
"Wolverhampton City Council","http://opendatacommunities.org/id/metropolitan-district-council/wolverhampton","Boningale Nurseries","355371","141.30","Materials","130147113","07/12/2016","Environmental Maintenance","Direct Schools","R4007"
"Wolverhampton City Council","http://opendatacommunities.org/id/metropolitan-district-council/wolverhampton","Boningale Nurseries","355870","405.00","Materials","130149545","14/12/2016","Environmental Maintenance","Ground Maintenance East","R4007"
"Wolverhampton City Council","http://opendatacommunities.org/id/metropolitan-district-council/wolverhampton","Boningale Nurseries","355423","5,306.00","Materials","130147655","02/12/2016","Environmental Maintenance","Ground Maintenance East","R4007"
"Wolverhampton City Council","http://opendatacommunities.org/id/metropolitan-district-council/wolverhampton","Boningale Nurseries","355372","436.31","Materials","130147114","02/12/2016","Environmental Maintenance","Direct Schools","R4007"
"Wolverhampton City Council","http://opendatacommunities.org/id/metropolitan-district-council/wolverhampton","Boulton Travel Limited","BTWCBM5.14","1,980.00","Client Transport","130149379","22/12/2016","School Planning & Resources","Special - Transport","R3042"
"Wolverhampton City Council","http://opendatacommunities.org/id/metropolitan-district-council/wolverhampton","Boulton Travel Limited","BTWCBM1.14","2,090.00","Client Transport","130149378","22/12/2016","School Planning & Resources","Special - Transport","R3042"
"Wolverhampton City Council","http://opendatacommunities.org/id/metropolitan-district-council/wolverhampton","Boulton Travel Limited","BTWCBM3.14","2,090.00","Client Transport","130149158","22/12/2016","School Planning & Resources","Special - Transport","R3042"
"Wolverhampton City Council","http://opendatacommunities.org/id/metropolitan-district-council/wolverhampton","Bourne Leisure Limited","BR00250409","125.50","TPP - Short Breaks","130149374","22/12/2016","Short Breaks Commissioning","Short Breaks","R5500"
"Wolverhampton City Council","http://opendatacommunities.org/id/metropolitan-district-council/wolverhampton","Bourne Leisure Limited","BR00251840","43.46","TPP - Short Breaks","130149376","22/12/2016","Short Breaks Commissioning","Short Breaks","R5500"
"Wolverhampton City Council","http://opendatacommunities.org/id/metropolitan-district-council/wolverhampton","Bourne Leisure Limited","BR00251841","243.23","TPP - Short Breaks","130149377","22/12/2016","Short Breaks Commissioning","Short Breaks","R5500"
"Wolverhampton City Council","http://opendatacommunities.org/id/metropolitan-district-council/wolverhampton","Bourne Leisure Limited","BR00250696","184.85","TPP - Short Breaks","130149375","22/12/2016","Short Breaks Commissioning","Short Breaks","R5500"
"Wolverhampton City Council","http://opendatacommunities.org/id/metropolitan-district-council/wolverhampton","Bourne Leisure Limited","BR00248730","-195.83","TPP - Short Breaks","130149373","22/12/2016","Short Breaks Commissioning","Short Breaks","R5500"
"Wolverhampton City Council","http://opendatacommunities.org/id/metropolitan-district-council/wolverhampton","Bowmat Fencing","1588","980.00","Equipment - Purchase","130149703","14/12/2016","Standards and Vulnerable Pupils","SEN Early Years Team","R4000"
"Wolverhampton City Council","http://opendatacommunities.org/id/metropolitan-district-council/wolverhampton","Bradmore Community Association","1707","170.00","Room Hire","130150280","21/12/2016","Adult Education","Creative Studies Delivery Area","R2201"
"Wolverhampton City Council","http://opendatacommunities.org/id/metropolitan-district-council/wolverhampton","Bradmore Community Association","1646","79.20","Room Hire","130146499","09/12/2016","Community Safety","SWP - Locations","R2201"
"Wolverhampton City Council","http://opendatacommunities.org/id/metropolitan-district-council/wolverhampton","Brakes/Brakefresh","9255239860","230.96","Provisions (Resale)","130150660","22/12/2016","Catering","Civic Centre Catering","R4102"
"Wolverhampton City Council","http://opendatacommunities.org/id/metropolitan-district-council/wolverhampton","Brakes/Brakefresh","9255239860","-230.96","Provisions (Resale)","130150660","22/12/2016","Catering","Civic Centre Catering","R4102"
"Wolverhampton City Council","http://opendatacommunities.org/id/metropolitan-district-council/wolverhampton","Brakes/Brakefresh","9255239860","230.96","Provisions (Resale)","130150660","22/12/2016","Catering","Civic Centre Catering","R4102"
"Wolverhampton City Council","http://opendatacommunities.org/id/metropolitan-district-council/wolverhampton","Brakes/Brakefresh","7255002174 CREDIT","-7.00","Fixtures and Fittings - R&M","130148730","22/12/2016","Facilities Management","Magistrates","R2502"
"Wolverhampton City Council","http://opendatacommunities.org/id/metropolitan-district-council/wolverhampton","Brakes/Brakefresh","9255222500","41.85","Provisions (Resale)","130148881","16/12/2016","Catering","Civic Centre Catering","R4102"
"Wolverhampton City Council","http://opendatacommunities.org/id/metropolitan-district-council/wolverhampton","Brakes/Brakefresh","9255243334","92.38","Provisions (Resale)","130150661","22/12/2016","Catering","Civic Centre Catering","R4102"
"Wolverhampton City Council","http://opendatacommunities.org/id/metropolitan-district-council/wolverhampton","Brakes/Brakefresh","9255243334","-92.38","Provisions (Resale)","130150661","22/12/2016","Catering","Civic Centre Catering","R4102"
"Wolverhampton City Council","http://opendatacommunities.org/id/metropolitan-district-council/wolverhampton","Brakes/Brakefresh","9255243334","92.38","Provisions (Resale)","130150661","22/12/2016","Catering","Civic Centre Catering","R4102"
"Wolverhampton City Council","http://opendatacommunities.org/id/metropolitan-district-council/wolverhampton","Brakes/Brakefresh","7255003552","-50.82","Provisions (Resale)","130146733","07/12/2016","Catering","Civic Centre Catering","R4102"
"Wolverhampton City Council","http://opendatacommunities.org/id/metropolitan-district-council/wolverhampton","Brakes/Brakefresh","7255003552","50.82","Provisions (Resale)","130146733","07/12/2016","Catering","Civic Centre Catering","R4102"
"Wolverhampton City Council","http://opendatacommunities.org/id/metropolitan-district-council/wolverhampton","Brakes/Brakefresh","7255003552","-50.82","Provisions (Resale)","130146733","07/12/2016","Catering","Civic Centre Catering","R4102"
"Wolverhampton City Council","http://opendatacommunities.org/id/metropolitan-district-council/wolverhampton","Brakes/Brakefresh","7255002174 debit correction","-7.00","Provisions (Resale)","130148395","22/12/2016","Catering","Civic Centre Catering","R4102"
"Wolverhampton City Council","http://opendatacommunities.org/id/metropolitan-district-council/wolverhampton","Brakes/Brakefresh","9255231060","104.06","Provisions (Resale)","130150658","22/12/2016","Catering","Civic Centre Catering","R4102"
"Wolverhampton City Council","http://opendatacommunities.org/id/metropolitan-district-council/wolverhampton","Brakes/Brakefresh","9255231060","-104.06","Provisions (Resale)","130150658","22/12/2016","Catering","Civic Centre Catering","R4102"
"Wolverhampton City Council","http://opendatacommunities.org/id/metropolitan-district-council/wolverhampton","Brakes/Brakefresh","9255231060","104.06","Provisions (Resale)","130150658","22/12/2016","Catering","Civic Centre Catering","R4102"
"Wolverhampton City Council","http://opendatacommunities.org/id/metropolitan-district-council/wolverhampton","Brakes/Brakefresh","925522911","29.14","Provisions (Resale)","130148882","21/12/2016","Catering","Civic Centre Catering","R4102"
"Wolverhampton City Council","http://opendatacommunities.org/id/metropolitan-district-council/wolverhampton","Brakes/Brakefresh","925522911","-29.14","Provisions (Resale)","130148882","21/12/2016","Catering","Civic Centre Catering","R4102"
"Wolverhampton City Council","http://opendatacommunities.org/id/metropolitan-district-council/wolverhampton","Brakes/Brakefresh","925522911","29.14","Provisions (Resale)","130148882","21/12/2016","Catering","Civic Centre Catering","R4102"
"Wolverhampton City Council","http://opendatacommunities.org/id/metropolitan-district-council/wolverhampton","Brakes/Brakefresh","64762593","38.67","Provisions (Resale)","130148863","14/12/2016","Catering","Civic Centre Catering","R4102"
"Wolverhampton City Council","http://opendatacommunities.org/id/metropolitan-district-council/wolverhampton","Brakes/Brakefresh","64762593","-38.67","Provisions (Resale)","130148863","14/12/2016","Catering","Civic Centre Catering","R4102"
"Wolverhampton City Council","http://opendatacommunities.org/id/metropolitan-district-council/wolverhampton","Brakes/Brakefresh","64762593","38.67","Provisions (Resale)","130148863","14/12/2016","Catering","Civic Centre Catering","R4102"
"Wolverhampton City Council","http://opendatacommunities.org/id/metropolitan-district-council/wolverhampton","Brakes/Brakefresh","9255237757","135.11","Provisions (Resale)","130150659","22/12/2016","Catering","Civic Centre Catering","R4102"
"Wolverhampton City Council","http://opendatacommunities.org/id/metropolitan-district-council/wolverhampton","Brakes/Brakefresh","9255237757","-135.11","Provisions (Resale)","130150659","22/12/2016","Catering","Civic Centre Catering","R4102"
"Wolverhampton City Council","http://opendatacommunities.org/id/metropolitan-district-council/wolverhampton","Brakes/Brakefresh","9255237757","135.11","Provisions (Resale)","130150659","22/12/2016","Catering","Civic Centre Catering","R4102"
"Wolverhampton City Council","http://opendatacommunities.org/id/metropolitan-district-council/wolverhampton","Brakes/Brakefresh","9255214087","100.64","Provisions (Resale)","130148879","14/12/2016","Catering","Civic Centre Catering","R4102"
"Wolverhampton City Council","http://opendatacommunities.org/id/metropolitan-district-council/wolverhampton","Brakes/Brakefresh","9255214087","-100.64","Provisions (Resale)","130148879","14/12/2016","Catering","Civic Centre Catering","R4102"
"Wolverhampton City Council","http://opendatacommunities.org/id/metropolitan-district-council/wolverhampton","Brakes/Brakefresh","9255214087","18.00","Provisions (Resale)","130148879","14/12/2016","Catering","Civic Centre Catering","R4102"
"Wolverhampton City Council","http://opendatacommunities.org/id/metropolitan-district-council/wolverhampton","Brakes/Brakefresh","9255214087","82.64","Provisions (Resale)","130148879","14/12/2016","Catering","Civic Centre Catering","R4102"
"Wolverhampton City Council","http://opendatacommunities.org/id/metropolitan-district-council/wolverhampton","Brakes/Brakefresh","9255220591","69.68","Provisions (Resale)","130148880","14/12/2016","Catering","Civic Centre Catering","R4102"
"Wolverhampton City Council","http://opendatacommunities.org/id/metropolitan-district-council/wolverhampton","Brakes/Brakefresh","9255220591","-69.68","Provisions (Resale)","130148880","14/12/2016","Catering","Civic Centre Catering","R4102"
"Wolverhampton City Council","http://opendatacommunities.org/id/metropolitan-district-council/wolverhampton","Brakes/Brakefresh","9255220591","69.68","Provisions (Resale)","130148880","14/12/2016","Catering","Civic Centre Catering","R4102"
"Wolverhampton City Council","http://opendatacommunities.org/id/metropolitan-district-council/wolverhampton","BT (Phone Bills)","CM62916745 Q0540&","108.90","Fixtures and Fittings - R&M","190294424","14/12/2016","Maintenance Programme","Centralised R&M","R2502"
"Wolverhampton City Council","http://opendatacommunities.org/id/metropolitan-district-council/wolverhampton","BT (Phone Bills)","CM59931185 Q100U0","91.00","Fixtures and Fittings - R&M","190294517","14/12/2016","Facilities Management","Caretakers Community Centre","R2502"
"Wolverhampton City Council","http://opendatacommunities.org/id/metropolitan-district-council/wolverhampton","BT (Phone Bills)","CM67907835 Q0111Q(2)","136.44","Fixtures and Fittings - R&M","190297500","21/12/2016","Facilities Management","Civic Centre","R2502"
"Wolverhampton City Council","http://opendatacommunities.org/id/metropolitan-district-council/wolverhampton","BT (Phone Bills)","CM59370308 Q11170","84.90","Fixtures and Fittings - R&M","190297504","21/12/2016","Facilities Management","Caretakers Community Centre","R2502"
"Wolverhampton City Council","http://opendatacommunities.org/id/metropolitan-district-council/wolverhampton","BT (Phone Bills)","CM 6122 3164 Q078 ZS","84.90","Comms - Telephone Rental","130149225","22/12/2016","Older People Provider Services","Ekta Day Centre","R4504"
"Wolverhampton City Council","http://opendatacommunities.org/id/metropolitan-district-council/wolverhampton","BT (Phone Bills)","CM 6122 3164 Q078 ZS","40.00","Comms - Telephone Rental","130149225","22/12/2016","Older People Provider Services","Ekta Day Centre","R4504"
"Wolverhampton City Council","http://opendatacommunities.org/id/metropolitan-district-council/wolverhampton","BT (Phone Bills)","CM62916736 Q054&X","108.90","Fixtures and Fittings - R&M","190294425","14/12/2016","Maintenance Programme","Centralised R&M","R2502"
"Wolverhampton City Council","http://opendatacommunities.org/id/metropolitan-district-council/wolverhampton","BT (Phone Bills)","CM59371556 Q111U4","92.57","Fixtures and Fittings - R&M","190294515","14/12/2016","Facilities Management","Caretakers Community Centre","R2502"
"Wolverhampton City Council","http://opendatacommunities.org/id/metropolitan-district-council/wolverhampton","BT (Phone Bills)","CM59689433 Q1025F","87.52","Fixtures and Fittings - R&M","190297495","21/12/2016","Facilities Management","Management of Vacant Properties","R2502"
"Wolverhampton City Council","http://opendatacommunities.org/id/metropolitan-district-council/wolverhampton","BT (Phone Bills)","CM59126723 Q1115V","84.90","Fixtures and Fittings - R&M","190297502","21/12/2016","Facilities Management","Caretakers Community Centre","R2502"
"Wolverhampton City Council","http://opendatacommunities.org/id/metropolitan-district-council/wolverhampton","BT (Phone Bills)","Q218","89.95","Services - Assistive technology","190292623","09/12/2016","All Age Disability (Disabilities)","CSDP","R4407"
"Wolverhampton City Council","http://opendatacommunities.org/id/metropolitan-district-council/wolverhampton","BT (Phone Bills)","CM61647061 Q073R2(1)","40.00","Fixtures and Fittings - R&M","190294427","14/12/2016","Maintenance Programme","Centralised R&M","R2502"
"Wolverhampton City Council","http://opendatacommunities.org/id/metropolitan-district-council/wolverhampton","BT (Phone Bills)","CM63913030 Q042YV","84.90","Fixtures and Fittings - R&M","190294428","14/12/2016","Facilities Management","Public Conveniences","R2502"
"Wolverhampton City Council","http://opendatacommunities.org/id/metropolitan-district-council/wolverhampton","BT (Phone Bills)","CM59689433 Q1025F(1)","30.00","Fixtures and Fittings - R&M","190297496","21/12/2016","Facilities Management","Management of Vacant Properties","R2502"
"Wolverhampton City Council","http://opendatacommunities.org/id/metropolitan-district-council/wolverhampton","BT (Phone Bills)","CM67907835 Q0111Q","84.90","Fixtures and Fittings - R&M","190297498","21/12/2016","Facilities Management","Civic Centre","R2502"
"Wolverhampton City Council","http://opendatacommunities.org/id/metropolitan-district-council/wolverhampton","BT (Phone Bills)","Q051K7","124.92","Comms - Telephone Call charges","130150004","22/12/2016","Adult Education","Old Hall Street Main","R4505"
"Wolverhampton City Council","http://opendatacommunities.org/id/metropolitan-district-council/wolverhampton","BT (Phone Bills)","Q051K7","-124.92","Comms - Telephone Call charges","130150004","22/12/2016","Adult Education","Old Hall Street Main","R4505"
"Wolverhampton City Council","http://opendatacommunities.org/id/metropolitan-district-council/wolverhampton","BT (Phone Bills)","Q051K7","84.92","Comms - Telephone Call charges","130150004","22/12/2016","Adult Education","Old Hall Street Main","R4505"
"Wolverhampton City Council","http://opendatacommunities.org/id/metropolitan-district-council/wolverhampton","BT (Phone Bills)","Q051K7","40.00","Comms - Telephone Call charges","130150004","22/12/2016","Adult Education","Old Hall Street Main","R4505"
"Wolverhampton City Council","http://opendatacommunities.org/id/metropolitan-district-council/wolverhampton","BT (Phone Bills)","CM59254076 Q1132K(1)","-37.68","Fixtures and Fittings - R&M","190297494","21/12/2016","Facilities Management","Management of Vacant Properties","R2502"
"Wolverhampton City Council","http://opendatacommunities.org/id/metropolitan-district-council/wolverhampton","BT (Phone Bills)","CM68462862 Q007QA","84.90","Fixtures and Fittings - R&M","190297497","21/12/2016","Facilities Management","Victoria Square, Block 11","R2502"
"Wolverhampton City Council","http://opendatacommunities.org/id/metropolitan-district-council/wolverhampton","BT (Phone Bills)","Q036WH","84.90","Comms - Telephone Call charges","190293981","14/12/2016","Learning Disability Provider","Ernest Bold Court","R4505"
"Wolverhampton City Council","http://opendatacommunities.org/id/metropolitan-district-council/wolverhampton","BT (Phone Bills)","CM59490552 Q109EU","98.15","Fixtures and Fittings - R&M","190294514","14/12/2016","Facilities Management","Caretakers Community Centre","R2502"
"Wolverhampton City Council","http://opendatacommunities.org/id/metropolitan-district-council/wolverhampton","BT (Phone Bills)","CM 6353 4916 Q0465X","124.90","Comms - Telephone Call charges","130150003","22/12/2016","Adult Education","Old Hall Street Main","R4505"
"Wolverhampton City Council","http://opendatacommunities.org/id/metropolitan-district-council/wolverhampton","BT (Phone Bills)","CM 6353 4916 Q0465X","-124.90","Comms - Telephone Call charges","130150003","22/12/2016","Adult Education","Old Hall Street Main","R4505"
"Wolverhampton City Council","http://opendatacommunities.org/id/metropolitan-district-council/wolverhampton","BT (Phone Bills)","CM 6353 4916 Q0465X","84.90","Comms - Telephone Call charges","130150003","22/12/2016","Adult Education","Old Hall Street Main","R4505"
"Wolverhampton City Council","http://opendatacommunities.org/id/metropolitan-district-council/wolverhampton","BT (Phone Bills)","CM 6353 4916 Q0465X","40.00","Comms - Telephone Call charges","130150003","22/12/2016","Adult Education","Old Hall Street Main","R4505"
"Wolverhampton City Council","http://opendatacommunities.org/id/metropolitan-district-council/wolverhampton","BT (Phone Bills)","CM59297898 Q1114R","89.58","Fixtures and Fittings - R&M","190297503","21/12/2016","Facilities Management","Caretakers Community Centre","R2502"
"Wolverhampton City Council","http://opendatacommunities.org/id/metropolitan-district-council/wolverhampton","BT (Phone Bills)","Q024 EP","84.90","Comms - Telephone Call charges","190295489","16/12/2016","Learning Disability Provider","Community Enablement","R4505"
"Wolverhampton City Council","http://opendatacommunities.org/id/metropolitan-district-council/wolverhampton","BT (Phone Bills)","26084980 Q015","965.00","Computing - Internet","130146311","07/12/2016","Operation & Maintenance of Existing Network","UTC Wolverhampton","R4537"
"Wolverhampton City Council","http://opendatacommunities.org/id/metropolitan-district-council/wolverhampton","BT (Phone Bills)","CM59317141 Q112DI","84.90","Fixtures and Fittings - R&M","190294516","14/12/2016","Facilities Management","Caretakers Community Centre","R2502"
"Wolverhampton City Council","http://opendatacommunities.org/id/metropolitan-district-council/wolverhampton","BT (Phone Bills)","CM60725087 Q088YQ","84.90","Fixtures and Fittings - R&M","190297507","21/12/2016","Facilities Management","Caretakers Community Centre","R2502"
"Wolverhampton City Council","http://opendatacommunities.org/id/metropolitan-district-council/wolverhampton","BT (Phone Bills)","Q216","471.80","Services - Assistive technology","190292624","09/12/2016","All Age Disability (Disabilities)","CSDP","R4407"
"Wolverhampton City Council","http://opendatacommunities.org/id/metropolitan-district-council/wolverhampton","BT (Phone Bills)","CM 6285 4346 Q055 MG","124.90","Comms - Telephone Call charges","130149637","22/12/2016","Visitor Economy","Civic Hall Administration Overhead Account","R4505"
"Wolverhampton City Council","http://opendatacommunities.org/id/metropolitan-district-council/wolverhampton","BT (Phone Bills)","CM 6285 4346 Q055 MG","-124.90","Comms - Telephone Call charges","130149637","22/12/2016","Visitor Economy","Civic Hall Administration Overhead Account","R4505"
"Wolverhampton City Council","http://opendatacommunities.org/id/metropolitan-district-council/wolverhampton","BT (Phone Bills)","CM 6285 4346 Q055 MG","84.90","Comms - Telephone Call charges","130149637","22/12/2016","Visitor Economy","Civic Hall Administration Overhead Account","R4505"
"Wolverhampton City Council","http://opendatacommunities.org/id/metropolitan-district-council/wolverhampton","BT (Phone Bills)","CM 6285 4346 Q055 MG","40.00","Comms - Telephone Call charges","130149637","22/12/2016","Visitor Economy","Civic Hall Administration Overhead Account","R4505"
"Wolverhampton City Council","http://opendatacommunities.org/id/metropolitan-district-council/wolverhampton","BT (Phone Bills)","CM59254076 Q1132K","89.58","Fixtures and Fittings - R&M","190297493","21/12/2016","Facilities Management","Management of Vacant Properties","R2502"
"Wolverhampton City Council","http://opendatacommunities.org/id/metropolitan-district-council/wolverhampton","BT (Phone Bills)","CM59020054 Q1126&","84.90","Fixtures and Fittings - R&M","190294518","14/12/2016","Maintenance Programme","Centralised R&M","R2502"
"Wolverhampton City Council","http://opendatacommunities.org/id/metropolitan-district-council/wolverhampton","BT (Phone Bills)","CM63012684 Q052B6(1)","40.00","Fixtures and Fittings - R&M","190297491","21/12/2016","Facilities Management","Caretakers Community Centre","R2502"
"Wolverhampton City Council","http://opendatacommunities.org/id/metropolitan-district-council/wolverhampton","BT (Phone Bills)","CM59609271 Q1073H","84.90","Fixtures and Fittings - R&M","190297501","21/12/2016","Facilities Management","Caretakers Community Centre","R2502"
"Wolverhampton City Council","http://opendatacommunities.org/id/metropolitan-district-council/wolverhampton","BT (Phone Bills)","cm 5966 6791 Q106WE","97.63","Comms - Telephone Call charges","130149417","22/12/2016","Independent Living Service","Adaptations Team","R4505"
"Wolverhampton City Council","http://opendatacommunities.org/id/metropolitan-district-council/wolverhampton","BT (Phone Bills)","cm 5966 6791 Q106WE","40.00","Comms - Telephone Call charges","130149417","22/12/2016","Independent Living Service","Adaptations Team","R4505"
"Wolverhampton City Council","http://opendatacommunities.org/id/metropolitan-district-council/wolverhampton","BT (Phone Bills)","CM63012684 Q052B6(2)","-97.16","Fixtures and Fittings - R&M","190297492","21/12/2016","Facilities Management","Caretakers Community Centre","R2502"
"Wolverhampton City Council","http://opendatacommunities.org/id/metropolitan-district-council/wolverhampton","BT (Phone Bills)","Q212","107.94","Services - Assistive technology","190292622","09/12/2016","All Age Disability (Disabilities)","CSDP","R4407"
"Wolverhampton City Council","http://opendatacommunities.org/id/metropolitan-district-council/wolverhampton","BT (Phone Bills)","CM 5935 3200 Q111C2","84.90","Comms - Telephone Rental","130149418","14/12/2016","Older People Provider Services","Ekta Day Centre","R4504"
"Wolverhampton City Council","http://opendatacommunities.org/id/metropolitan-district-council/wolverhampton","BT (Phone Bills)","CM 5935 3200 Q111C2","40.00","Comms - Telephone Rental","130149418","14/12/2016","Older People Provider Services","Ekta Day Centre","R4504"
"Wolverhampton City Council","http://opendatacommunities.org/id/metropolitan-district-council/wolverhampton","BT (Phone Bills)","CM61647061 Q073R2","84.90","Fixtures and Fittings - R&M","190294426","14/12/2016","Maintenance Programme","Centralised R&M","R2502"
"Wolverhampton City Council","http://opendatacommunities.org/id/metropolitan-district-council/wolverhampton","BT (Phone Bills)","CM63012684 Q052B6","84.90","Fixtures and Fittings - R&M","190297490","21/12/2016","Facilities Management","Caretakers Community Centre","R2502"
"Wolverhampton City Council","http://opendatacommunities.org/id/metropolitan-district-council/wolverhampton","BT (Phone Bills)","CM66892145 Q022CB(1)","40.00","Fixtures and Fittings - R&M","190297506","21/12/2016","Facilities Management","Caretakers Community Centre","R2502"
"Wolverhampton City Council","http://opendatacommunities.org/id/metropolitan-district-council/wolverhampton","BT (Phone Bills)","VP42501170 Q07101","3,852.50","Comms - Telephone Rental","130147444","02/12/2016","Housing Revenue Account - Communities","Carelink","R4504"
"Wolverhampton City Council","http://opendatacommunities.org/id/metropolitan-district-council/wolverhampton","BT (Phone Bills)","CM 6076 9175 Q086T9","392.50","Comms - Radios","130149638","22/12/2016","ICTS","Strategic ICTS (ICT Service Budget)","R4508"
"Wolverhampton City Council","http://opendatacommunities.org/id/metropolitan-district-council/wolverhampton","BT (Phone Bills)","CM 6076 9175 Q086T9","-392.50","Comms - Radios","130149638","22/12/2016","ICTS","Strategic ICTS (ICT Service Budget)","R4508"
"Wolverhampton City Council","http://opendatacommunities.org/id/metropolitan-district-council/wolverhampton","BT (Phone Bills)","CM 6076 9175 Q086T9","352.50","Comms - Radios","130149638","22/12/2016","ICTS","Strategic ICTS (ICT Service Budget)","R4508"
"Wolverhampton City Council","http://opendatacommunities.org/id/metropolitan-district-council/wolverhampton","BT (Phone Bills)","CM 6076 9175 Q086T9","40.00","Comms - Radios","130149638","22/12/2016","ICTS","Strategic ICTS (ICT Service Budget)","R4508"
"Wolverhampton City Council","http://opendatacommunities.org/id/metropolitan-district-council/wolverhampton","BT (Phone Bills)","CM60725087 Q088YQ(1)","40.00","Fixtures and Fittings - R&M","190297508","21/12/2016","Facilities Management","Caretakers Community Centre","R2502"
"Wolverhampton City Council","http://opendatacommunities.org/id/metropolitan-district-council/wolverhampton","BT (Phone Bills)","Q217","185.70","Services - Assistive technology","190292625","09/12/2016","All Age Disability (Disabilities)","CSDP","R4407"
"Wolverhampton City Council","http://opendatacommunities.org/id/metropolitan-district-council/wolverhampton","BT (Phone Bills)","Q1137W","247.33","Fixtures and Fittings - R&M","190291555","07/12/2016","Facilities Management","Civic Centre","R2502"
"Wolverhampton City Council","http://opendatacommunities.org/id/metropolitan-district-council/wolverhampton","BT (Phone Bills)","CM67907835 Q0111Q(1)","40.00","Fixtures and Fittings - R&M","190297499","21/12/2016","Facilities Management","Civic Centre","R2502"
"Wolverhampton City Council","http://opendatacommunities.org/id/metropolitan-district-council/wolverhampton","BT (Phone Bills)","CM66892145 Q022CB","84.90","Fixtures and Fittings - R&M","190297505","21/12/2016","Facilities Management","Caretakers Community Centre","R2502"
"Wolverhampton City Council","http://opendatacommunities.org/id/metropolitan-district-council/wolverhampton","BT (Phone Bills)","CM62195523 Q06718","84.90","Fixtures and Fittings - R&M","190294519","14/12/2016","Maintenance Programme","Centralised R&M","R2502"
"Wolverhampton City Council","http://opendatacommunities.org/id/metropolitan-district-council/wolverhampton","Browne Jacobson Llp","341024","2,275.00","Services - Professional Fees","130149103","22/12/2016","Human Resources","HR Advice","R4400"
"Wolverhampton City Council","http://opendatacommunities.org/id/metropolitan-district-council/wolverhampton","Browne Jacobson Llp","338894","1,032.50","Services - Professional Fees","130146323","07/12/2016","Human Resources","Equal Pay","R4400"
"Wolverhampton City Council","http://opendatacommunities.org/id/metropolitan-district-council/wolverhampton","Browne Jacobson Llp","340947","1,562.00","Services - Professional Fees","130149920","22/12/2016","Human Resources","Equal Pay","R4400"
"Wolverhampton City Council","http://opendatacommunities.org/id/metropolitan-district-council/wolverhampton","Browne Jacobson Llp","340947","750.00","Services - Professional Fees","130149920","22/12/2016","Human Resources","Equal Pay","R4400"
"Wolverhampton City Council","http://opendatacommunities.org/id/metropolitan-district-council/wolverhampton","Broxap Limited","INV201568","9,487.00","Equipment - Purchase","130145942","09/12/2016","Environmental Maintenance","Graffiti Removal Team","R4000"
"Wolverhampton City Council","http://opendatacommunities.org/id/metropolitan-district-council/wolverhampton","Brunch Bite Limited","32928","43.65","Catering","130147636","09/12/2016","Psychology","Inclusion Support","R4100"
"Wolverhampton City Council","http://opendatacommunities.org/id/metropolitan-district-council/wolverhampton","BT (Business)","IN03611390","4,330.00","Intangible Assets / Computer Software","130148701","22/12/2016","-","ICT Desktop Refresh","C4005"
"Wolverhampton City Council","http://opendatacommunities.org/id/metropolitan-district-council/wolverhampton","BT (Business)","M019C3","293.37","Services - Fees and Charges","130147827","21/12/2016","Leisure Services","WV Active Catering","R4401"
"Wolverhampton City Council","http://opendatacommunities.org/id/metropolitan-district-council/wolverhampton","BT (Business)","IN03590833","1,588.72","Computing - Purchase of Hardware","130145569","07/12/2016","School Planning & Resources","Technical Support","R4530"
"Wolverhampton City Council","http://opendatacommunities.org/id/metropolitan-district-council/wolverhampton","BT (Business)","IN03590833","6.00","Comms - Postage","130145569","07/12/2016","School Planning & Resources","Technical Support","R4503"
"Wolverhampton City Council","http://opendatacommunities.org/id/metropolitan-district-council/wolverhampton","BT (Business)","IN03490365","541.80","Computing - Purchase of Hardware","130142784","02/12/2016","ICTS","Strategic ICTS (ICT Service Budget)","R4530"
"Wolverhampton City Council","http://opendatacommunities.org/id/metropolitan-district-council/wolverhampton","BT (Business)","Q028 L4","135.00","Comms - Telephone Rental","130144928","14/12/2016","Operation & Maintenance of Existing Network","UTC Wolverhampton","R4504"
"Wolverhampton City Council","http://opendatacommunities.org/id/metropolitan-district-council/wolverhampton","BT Global","426049","22,790.86","TPP - Rechargeable Works Costs","130148607","07/12/2016","Operation & Maintenance of Existing Network","UTC only � External Rechargeable Works","R5730"
"Wolverhampton City Council","http://opendatacommunities.org/id/metropolitan-district-council/wolverhampton","BT Global","426041","27,486.49","TPP - Maintenance Contractor - General","130148606","07/12/2016","Operation & Maintenance of Existing Network","UTC Wolverhampton","R5720"
"Wolverhampton City Council","http://opendatacommunities.org/id/metropolitan-district-council/wolverhampton","BT Global","0790198018 - Nov 16","98.19","Comms - Telephone Rental","190294419","14/12/2016","Management and Administration","Public Health Support Costs","R4504"
"Wolverhampton City Council","http://opendatacommunities.org/id/metropolitan-district-council/wolverhampton","BT Global","426077","8,793.83","TPP - Rechargeable Works Costs","130148609","07/12/2016","Operation & Maintenance of Existing Network","UTC only � External Rechargeable Works","R5730"
"Wolverhampton City Council","http://opendatacommunities.org/id/metropolitan-district-council/wolverhampton","BT Global","426062","8,958.64","TPP - Rechargeable Works Costs","130148608","09/12/2016","Operation & Maintenance of Existing Network","UTC only � External Rechargeable Works","R5730"
"Wolverhampton City Council","http://opendatacommunities.org/id/metropolitan-district-council/wolverhampton","Bulk Minerals Limited","000973","154.62","Materials","130148746","22/12/2016","Highways Maintenance","Planned Highways Maintenance","R4007"
"Wolverhampton City Council","http://opendatacommunities.org/id/metropolitan-district-council/wolverhampton","United Living","SI/003299","142,449.00","Construction and Conversion","130149835","14/12/2016","-","Decent Homes - Stock Improvements","C1100"
"Wolverhampton City Council","http://opendatacommunities.org/id/metropolitan-district-council/wolverhampton","United Living","SI/003228","318,732.00","Construction and Conversion","130148113","02/12/2016","-","Decent Homes - Stock Improvements","C1100"
"Wolverhampton City Council","http://opendatacommunities.org/id/metropolitan-district-council/wolverhampton","United Living","SI/003303","158,670.00","Construction and Conversion","130150012","14/12/2016","-","Low Hill PODS scheme","C1100"
"Wolverhampton City Council","http://opendatacommunities.org/id/metropolitan-district-council/wolverhampton","United Living","SI/003290","106,478.00","Construction and Conversion","130149647","14/12/2016","-","Refurbishment of Voids","C1100"
"Wolverhampton City Council","http://opendatacommunities.org/id/metropolitan-district-council/wolverhampton","United Living","SI/003305","161,984.00","Construction and Conversion","130150014","14/12/2016","-","New Build infill schemes","C1100"
"Wolverhampton City Council","http://opendatacommunities.org/id/metropolitan-district-council/wolverhampton","United Living","SI/003288","375,066.00","Construction and Conversion","130149645","14/12/2016","-","Decent Homes - Stock Improvements","C1100"
"Wolverhampton City Council","http://opendatacommunities.org/id/metropolitan-district-council/wolverhampton","United Living","SI/003289","50,901.00","Construction and Conversion","130149646","21/12/2016","-","Structural works","C1100"
"Wolverhampton City Council","http://opendatacommunities.org/id/metropolitan-district-council/wolverhampton","United Living","SI/003292","122,604.00","Construction and Conversion","130149649","14/12/2016","-","Decent Homes - Stock Improvements","C1100"
"Wolverhampton City Council","http://opendatacommunities.org/id/metropolitan-district-council/wolverhampton","United Living","SI/003287","78,680.00","Construction and Conversion","130149644","14/12/2016","-","Decent Homes - Stock Improvements","C1100"
"Wolverhampton City Council","http://opendatacommunities.org/id/metropolitan-district-council/wolverhampton","United Living","SI/003291","34,641.00","R&M - Departmental planned (external)","130149648","14/12/2016","Housing Revenue Account","Amounts to be Settled with Wolverhampton Homes","R2001"
"Wolverhampton City Council","http://opendatacommunities.org/id/metropolitan-district-council/wolverhampton","United Living","SI/003230","106,594.00","Construction and Conversion","130148114","14/12/2016","-","New Build infill schemes","C1100"
"Wolverhampton City Council","http://opendatacommunities.org/id/metropolitan-district-council/wolverhampton","United Living","SI/003304","84,948.00","Construction and Conversion","130150013","14/12/2016","-","Energy Efficiency works - City wide","C1100"
"Wolverhampton City Council","http://opendatacommunities.org/id/metropolitan-district-council/wolverhampton","Bushbury Triangle Neighbour.Nursery","NEF Aut 16 Inst 2","16,186.27","TPP - Private Nursery Education Funding","190296021","16/12/2016","Early Years","Early Years Non Maintained Schools","R5035"
"Wolverhampton City Council","http://opendatacommunities.org/id/metropolitan-district-council/wolverhampton","Bushbury Triangle Neighbour.Nursery","T42 Aut 16 Inst 2","11,130.00","Grant Payments","190296006","16/12/2016","Early Years","2 Year Olds Pilot - Early Learning & Childcare","R4700"
"Wolverhampton City Council","http://opendatacommunities.org/id/metropolitan-district-council/wolverhampton","Bytes Software Services Limited","461776","696.00","Plant, Equipment, Machinery & Computer Hardware","130146913","07/12/2016","-","ICT General Programme","C3000"
"Wolverhampton City Council","http://opendatacommunities.org/id/metropolitan-district-council/wolverhampton","Bytes Software Services Limited","463749","139.41","Computing - Licences","130148840","22/12/2016","ICTS","Strategic ICTS (ICT Service Budget)","R4535"
"Wolverhampton City Council","http://opendatacommunities.org/id/metropolitan-district-council/wolverhampton","Bytes Software Services Limited","463436","114.80","Plant, Equipment, Machinery & Computer Hardware","130147338","21/12/2016","-","ICT General Programme","C3000"
"Wolverhampton City Council","http://opendatacommunities.org/id/metropolitan-district-council/wolverhampton","Bytes Software Services Limited","463785","1,175.85","Plant, Equipment, Machinery & Computer Hardware","130148841","22/12/2016","-","ICT General Programme","C3000"
"Wolverhampton City Council","http://opendatacommunities.org/id/metropolitan-district-council/wolverhampton","Bytes Software Services Limited","463438","945.76","Computing - Purchase of Software","130147339","21/12/2016","ICTS","Digital Transformation Programme","R4531"
"Wolverhampton City Council","http://opendatacommunities.org/id/metropolitan-district-council/wolverhampton","C M Community Care Services Limited","DJAC00120161208","178.36","TPP - Home Care","190292971","09/12/2016","Older People Assessment & Care Management","OP Care Purchasing (Spot Placements)","R5420"
"Wolverhampton City Council","http://opendatacommunities.org/id/metropolitan-district-council/wolverhampton","C M Community Care Services Limited","DJAC00120161208","192.08","TPP - Home Care","190292971","09/12/2016","Older People Assessment & Care Management","OP Care Purchasing (Spot Placements)","R5420"
"Wolverhampton City Council","http://opendatacommunities.org/id/metropolitan-district-council/wolverhampton","C M Community Care Services Limited","DRYA01920161216","140.63","TPP - Home Care","190296086","20/12/2016","Older People Assessment & Care Management","OP Care Purchasing (Spot Placements)","R5420"
"Wolverhampton City Council","http://opendatacommunities.org/id/metropolitan-district-council/wolverhampton","C M Community Care Services Limited","DRYA01920161216","168.07","TPP - Home Care","190296086","20/12/2016","Older People Assessment & Care Management","OP Care Purchasing (Spot Placements)","R5420"
"Wolverhampton City Council","http://opendatacommunities.org/id/metropolitan-district-council/wolverhampton","C M Community Care Services Limited","RDOD02520161208","192.08","TPP - Home Care","190292972","09/12/2016","Older People Assessment & Care Management","OP Care Purchasing (Spot Placements)","R5420"
"Wolverhampton City Council","http://opendatacommunities.org/id/metropolitan-district-council/wolverhampton","C M Community Care Services Limited","RDOD02520161208","192.08","TPP - Home Care","190292972","09/12/2016","Older People Assessment & Care Management","OP Care Purchasing (Spot Placements)","R5420"
"Wolverhampton City Council","http://opendatacommunities.org/id/metropolitan-district-council/wolverhampton","C M Community Care Services Limited","RDOD02620161216","192.08","TPP - Home Care","190296089","20/12/2016","Older People Assessment & Care Management","OP Care Purchasing (Spot Placements)","R5420"
"Wolverhampton City Council","http://opendatacommunities.org/id/metropolitan-district-council/wolverhampton","C M Community Care Services Limited","RDOD02620161216","192.08","TPP - Home Care","190296089","20/12/2016","Older People Assessment & Care Management","OP Care Purchasing (Spot Placements)","R5420"
"Wolverhampton City Council","http://opendatacommunities.org/id/metropolitan-district-council/wolverhampton","C M Community Care Services Limited","DJAC00220161216","164.64","TPP - Home Care","190296085","20/12/2016","Older People Assessment & Care Management","OP Care Purchasing (Spot Placements)","R5420"
"Wolverhampton City Council","http://opendatacommunities.org/id/metropolitan-district-council/wolverhampton","C M Community Care Services Limited","DJAC00220161216","192.08","TPP - Home Care","190296085","20/12/2016","Older People Assessment & Care Management","OP Care Purchasing (Spot Placements)","R5420"
"Wolverhampton City Council","http://opendatacommunities.org/id/metropolitan-district-council/wolverhampton","C M Community Care Services Limited","CMAN02520161208","130.34","TPP - Home Care","190292968","09/12/2016","Older People Assessment & Care Management","OP Care Purchasing (Spot Placements)","R5420"
"Wolverhampton City Council","http://opendatacommunities.org/id/metropolitan-district-council/wolverhampton","C M Community Care Services Limited","CMAN02520161208","144.06","TPP - Home Care","190292968","09/12/2016","Older People Assessment & Care Management","OP Care Purchasing (Spot Placements)","R5420"
"Wolverhampton City Council","http://opendatacommunities.org/id/metropolitan-district-council/wolverhampton","C M Community Care Services Limited","DHOR00220161216","264.11","TPP - Home Care","190296084","20/12/2016","Older People Assessment & Care Management","OP Care Purchasing (Spot Placements)","R5420"
"Wolverhampton City Council","http://opendatacommunities.org/id/metropolitan-district-council/wolverhampton","C M Community Care Services Limited","DHOR00120161208","240.10","TPP - Home Care","190292970","09/12/2016","Older People Assessment & Care Management","OP Care Purchasing (Spot Placements)","R5420"
"Wolverhampton City Council","http://opendatacommunities.org/id/metropolitan-district-council/wolverhampton","C M Community Care Services Limited","CMAN02420161202","144.06","TPP - Home Care","190291167","07/12/2016","Older People Assessment & Care Management","OP Care Purchasing (Spot Placements)","R5420"
"Wolverhampton City Council","http://opendatacommunities.org/id/metropolitan-district-council/wolverhampton","C M Community Care Services Limited","CMAN02420161202","144.06","TPP - Home Care","190291167","07/12/2016","Older People Assessment & Care Management","OP Care Purchasing (Spot Placements)","R5420"
"Wolverhampton City Council","http://opendatacommunities.org/id/metropolitan-district-council/wolverhampton","C M Community Care Services Limited","CMAN02620161216","137.20","TPP - Home Care","190296083","20/12/2016","Older People Assessment & Care Management","OP Care Purchasing (Spot Placements)","R5420"
"Wolverhampton City Council","http://opendatacommunities.org/id/metropolitan-district-council/wolverhampton","C M Community Care Services Limited","CMAN02620161216","144.06","TPP - Home Care","190296083","20/12/2016","Older People Assessment & Care Management","OP Care Purchasing (Spot Placements)","R5420"
"Wolverhampton City Council","http://opendatacommunities.org/id/metropolitan-district-council/wolverhampton","C M Community Care Services Limited","RDOD02420161202","192.08","TPP - Home Care","190291168","07/12/2016","Older People Assessment & Care Management","OP Care Purchasing (Spot Placements)","R5420"
"Wolverhampton City Council","http://opendatacommunities.org/id/metropolitan-district-council/wolverhampton","C M Community Care Services Limited","RDOD02420161202","192.08","TPP - Home Care","190291168","07/12/2016","Older People Assessment & Care Management","OP Care Purchasing (Spot Placements)","R5420"
"Wolverhampton City Council","http://opendatacommunities.org/id/metropolitan-district-council/wolverhampton","C M Community Care Services Limited","GMOR00220161216","216.09","TPP - Home Care","190296088","20/12/2016","Older People Assessment & Care Management","OP Care Purchasing (Spot Placements)","R5420"
"Wolverhampton City Council","http://opendatacommunities.org/id/metropolitan-district-council/wolverhampton","C M Community Care Services Limited","GMOR00220161216","216.09","TPP - Home Care","190296088","20/12/2016","Older People Assessment & Care Management","OP Care Purchasing (Spot Placements)","R5420"
"Wolverhampton City Council","http://opendatacommunities.org/id/metropolitan-district-council/wolverhampton","C M Community Care Services Limited","GMOR00120161216","216.09","TPP - Home Care","190296087","20/12/2016","Older People Assessment & Care Management","OP Care Purchasing (Spot Placements)","R5420"
